{"text_format":"1","workbook":"xlsx","n_sheets":9,"sheets":["Übersicht","Buchungstool","Input Buchungstool ","Input Raummiete","Input Marktdaten","Input Conferencing Services","Input Zusatzangebote","Raumplan","Belegungsplan"],"not_rendered":{"charts":0,"images":2,"macros":1,"external_links":0,"defined_names":0,"comments":2,"pivot_tables":0},"unopened":[],"bounds":{"document_bytes":16777216,"sheet_cells":100000,"rows_first":2000,"rows_last":500,"rows_between":2000,"halvings":0,"cell_chars":16384,"cell_head_chars":4096},"cells_cut":0,"cells_raw":0,"read":"whole","date_system":"1900"}

{"sheet":"Übersicht","index":0,"n_rows":52,"n_cols":9,"rows_kept":52,"cut":false,"hidden":true,"merged":[[26,1,26,2]]}
[]
[]
[null,"ERGO - Akademie Campus Belegung - Übersicht"]
[]
[null,"Empfehulung Raumpreise"]
[null,"Raumkategorie","Maximale Auslastung\n(in Personen)","Raumkosten Ganztags","Getränkepauschale Ganztags","Summe Ganztags (bei maximaler Auslastung)","Raumkosten Halbtags","Getränkepauschale Halbtags","Summe Halbtags (bei maximaler Auslastung)"]
[null,"Kleiner Raum (30 qm)",10,{"$f":"'Input Raummiete'!K34","v":200},{"$f":"'Input Conferencing Services'!F11","v":15.9},{"$f":"D7+C7*E7","v":359},250,{"$f":"'Input Conferencing Services'!$F$12","v":15.9},{"$f":"G7+C7*H7","v":409}]
[null,"Mittelgroßer Raum (60qm)",20,{"$f":"'Input Raummiete'!K35","v":300},{"$f":"'Input Conferencing Services'!F11","v":15.9},{"$f":"D8+C8*E8","v":618},350,{"$f":"'Input Conferencing Services'!$F$12","v":15.9},{"$f":"G8+C8*H8","v":668}]
[null,"Großer Raum (100 qm)",60,{"$f":"'Input Raummiete'!K36","v":750},{"$f":"'Input Conferencing Services'!F11","v":15.9},1704,800,{"$f":"'Input Conferencing Services'!$F$12","v":15.9},{"$f":"G9+C9*H9","v":1754}]
[null,"Content Raum",null,{"$f":"'Input Raummiete'!K37","v":500},{"$f":"'Input Conferencing Services'!F11","v":15.9},null,{"$f":"'Input Raummiete'!L37","v":500},{"$f":"'Input Conferencing Services'!$F$12","v":15.9}]
[null,"Info: Räume immer inklusive Getränkepauschale (Wassser, Kaffee, etc.) "]
[null,"Getränkepauschale hängt final von der Teilnehmeranzahl ab "]
[]
[null,"Raumübersicht",null,null,null,"Zubuchbare Module "]
[null,"Raumname","Raumgröße (in qm)","Klassifikation ",null,"Leistung",null,"Preis"]
[null,{"$f":"'Input Raummiete'!B17","v":"Athen (Olympia)"},{"$f":"'Input Raummiete'!C17","v":33.590000000000003},"Klein",null,"Frühstück",null,{"$f":"'Input Conferencing Services'!F7","v":15.8}]
[null,{"$f":"'Input Raummiete'!B18","v":"London (Olympia)"},{"$f":"'Input Raummiete'!C18","v":32.96},"Klein",null,"Mittagessen",null,{"$f":"'Input Conferencing Services'!F13","v":24.3}]
[null,{"$f":"'Input Raummiete'!B19","v":"Paris (Olympia)"},{"$f":"'Input Raummiete'!C19","v":36.42},"Klein",null,"Snacks (Kuchen) ",null,{"$f":"'Input Conferencing Services'!F14","v":4.5}]
[null,{"$f":"'Input Raummiete'!B20","v":"Olympia"},{"$f":"'Input Raummiete'!C20","v":102.97000000000001},"Groß",null,"Geschirrservice",null,{"$f":"'Input Conferencing Services'!F16","v":5.9}]
[null,{"$f":"'Input Raummiete'!B21","v":"Maracana"},{"$f":"'Input Raummiete'!C21","v":63.959999999999994},"Groß",null,"Übernachtung (inkl. Frühstück im Hotel) ",null,{"$f":"'Input Conferencing Services'!F21","v":105}]
[null,{"$f":"'Input Raummiete'!B22","v":"Hawaii"},{"$f":"'Input Raummiete'!C22","v":33.25},"Klein",null,"Übernachtung (inkl. Frühstück und Abendessen im Hotel) ",null,{"$f":"'Input Conferencing Services'!F19+'Input Conferencing Services'!F21","v":150}]
[null,{"$f":"'Input Raummiete'!B23","v":"Wimbledon"},{"$f":"'Input Raummiete'!C23","v":32.369999999999997},"Klein",null,"Flipchart",null,{"$f":"'Input Conferencing Services'!F22","v":10}]
[null,{"$f":"'Input Raummiete'!B24","v":"Los Angeles"},{"$f":"'Input Raummiete'!C24","v":32.92},"Klein",null,"Kleines Frühstück\n(Belegte Brötchen)",null,{"$f":"'Input Conferencing Services'!F23","v":5.9}]
[null,{"$f":"'Input Raummiete'!B25","v":"Kalifornien"},{"$f":"'Input Raummiete'!C25","v":32.96},"Klein"]
[]
[null,null,null,null,null,null,"Hinweise:"]
[null,"Zusatzangebote ",null,null,null,null,"Evt. in den ersten 100 Tagen mit Einführungspreisen arbeiten!?"]
[null,"On Campus "]
[null,"Aktivität","Kategorie","Preis","Ungefährer Zeitrahmen"]
[null,{"$f":"'Input Zusatzangebote'!B8","v":"Abendveranstaltung"},{"$f":"'Input Zusatzangebote'!C8","v":"Networking & Austausch"},{"$f":"'Input Zusatzangebote'!D8","v":"Abhängig von Organisation"},{"$f":"'Input Zusatzangebote'!E8","v":"2-3 Stunden"}]
[null,{"$f":"'Input Zusatzangebote'!B9","v":"Meet your CEO/Boss"},{"$f":"'Input Zusatzangebote'!C9","v":"Networking & Austausch"},{"$f":"'Input Zusatzangebote'!D9","v":"Abhängig von Organisation"},{"$f":"'Input Zusatzangebote'!E9","v":"1 Stunde"}]
[null,{"$f":"'Input Zusatzangebote'!B10","v":"Coffee & Connect Session"},{"$f":"'Input Zusatzangebote'!C10","v":"Networking & Austausch"},{"$f":"'Input Zusatzangebote'!D10","v":"Kostenlos"},{"$f":"'Input Zusatzangebote'!E10","v":"30 Minuten"}]
[null,{"$f":"'Input Zusatzangebote'!B11","v":"Brettspielabend"},{"$f":"'Input Zusatzangebote'!C11","v":"Networking & Austausch"},{"$f":"'Input Zusatzangebote'!D11","v":"Kostenlos oder ab 5 Euro"},{"$f":"'Input Zusatzangebote'!E11","v":"2 Stunden"}]
[null,{"$f":"'Input Zusatzangebote'!B12","v":"Show-Cooking"},{"$f":"'Input Zusatzangebote'!C12","v":"Kreatives"},{"$f":"'Input Zusatzangebote'!D12","v":"Ab 25 Euro pro Person"},{"$f":"'Input Zusatzangebote'!E12","v":"1-2 Stunden"}]
[null,{"$f":"'Input Zusatzangebote'!B13","v":"Kreativ-Workshop (z. B. Malen, Basteln)"},{"$f":"'Input Zusatzangebote'!C13","v":"Kreatives"},{"$f":"'Input Zusatzangebote'!D13","v":"Ab 15 Euro pro Person"},{"$f":"'Input Zusatzangebote'!E13","v":"1,5-2 Stunden"}]
[null,{"$f":"'Input Zusatzangebote'!B14","v":"Teamchallenges (z.B. zum Thema Nachhaltigkeit) "},{"$f":"'Input Zusatzangebote'!C14","v":"Kreatives"},{"$f":"'Input Zusatzangebote'!D14","v":"Kostenlos"},{"$f":"'Input Zusatzangebote'!E14","v":"Variabel"}]
[null,{"$f":"'Input Zusatzangebote'!B15","v":"Teambuilding-Quiz"},{"$f":"'Input Zusatzangebote'!C15","v":"Wellbeing & Teambuilding"},{"$f":"'Input Zusatzangebote'!D15","v":"Kostenlos"},{"$f":"'Input Zusatzangebote'!E15","v":"1 Stunde"}]
[null,{"$f":"'Input Zusatzangebote'!B16","v":"Sportliche Mini-Challenges (z. B. Team-Staffel)"},{"$f":"'Input Zusatzangebote'!C16","v":"Wellbeing & Teambuilding"},{"$f":"'Input Zusatzangebote'!D16","v":"Kostenlos oder ab 10 Euro"},{"$f":"'Input Zusatzangebote'!E16","v":"1-1,5 Stunden"}]
[null,{"$f":"'Input Zusatzangebote'!B17","v":"Yoga-Session"},{"$f":"'Input Zusatzangebote'!C17","v":"Wellbeing & Teambuilding"},{"$f":"'Input Zusatzangebote'!D17","v":"Ab 10 Euro pro Person"},{"$f":"'Input Zusatzangebote'!E17","v":"45 Minuten"}]
[null,"Off Campus "]
[null,"Aktivität","Kategorie","Preis","Ungefährer Zeitrahmen"]
[null,{"$f":"'Input Zusatzangebote'!B23","v":"Kulinarische Stadtführung"},{"$f":"'Input Zusatzangebote'!C23","v":"Kulturelle und Stadtführungen"},{"$f":"'Input Zusatzangebote'!D23","v":"ab 44 Euro pro Person"},{"$f":"'Input Zusatzangebote'!E23","v":"2,5 Stunden"}]
[null,{"$f":"'Input Zusatzangebote'!B24","v":"Segway-Tour Stadtführung"},{"$f":"'Input Zusatzangebote'!C24","v":"Kulturelle und Stadtführungen"},{"$f":"'Input Zusatzangebote'!D24","v":"ab 70 Euro pro Person"},{"$f":"'Input Zusatzangebote'!E24","v":"2 Stunden"}]
[null,{"$f":"'Input Zusatzangebote'!B25","v":"E-Scooter Stadtführung"},{"$f":"'Input Zusatzangebote'!C25","v":"Kulturelle und Stadtführungen"},{"$f":"'Input Zusatzangebote'!D25","v":"ab 59 Euro pro Person"},{"$f":"'Input Zusatzangebote'!E25","v":"2 Stunden"}]
[null,{"$f":"'Input Zusatzangebote'!B26","v":"Geführte Tour mit einem Nachtwächter Düsseldorf"},{"$f":"'Input Zusatzangebote'!C26","v":"Kulturelle und Stadtführungen"},{"$f":"'Input Zusatzangebote'!D26","v":"ab 20 Euro pro Person"},{"$f":"'Input Zusatzangebote'!E26","v":"1,5 Stunden"}]
[null,{"$f":"'Input Zusatzangebote'!B27","v":"Walking Tour in \"Little Tokyo\""},{"$f":"'Input Zusatzangebote'!C27","v":"Kulturelle und Stadtführungen"},{"$f":"'Input Zusatzangebote'!D27","v":"ab 9 Euro"},{"$f":"'Input Zusatzangebote'!E27","v":"1,5 Stunden"}]
[null,{"$f":"'Input Zusatzangebote'!B28","v":"Medienhafen Tour"},{"$f":"'Input Zusatzangebote'!C28","v":"Kulturelle und Stadtführungen"},{"$f":"'Input Zusatzangebote'!D28","v":"ab 20 Euro pro Person"},{"$f":"'Input Zusatzangebote'!E28","v":"2 Stunden"}]
[null,{"$f":"'Input Zusatzangebote'!B29","v":"Bootstour am Rhein"},{"$f":"'Input Zusatzangebote'!C29","v":"Erlebnis- und Freizeitaktivitäten"},{"$f":"'Input Zusatzangebote'!D29","v":"ab 25 Euro pro Person"},{"$f":"'Input Zusatzangebote'!E29","v":"2 Stunden"}]
[null,{"$f":"'Input Zusatzangebote'!B30","v":"Brauerei-Tour mit Altbierverkostung"},{"$f":"'Input Zusatzangebote'!C30","v":"Erlebnis- und Freizeitaktivitäten"},{"$f":"'Input Zusatzangebote'!D30","v":"ab 27,5 Euro pro Person"},{"$f":"'Input Zusatzangebote'!E30","v":"2 Stunden"}]
[null,{"$f":"'Input Zusatzangebote'!B31","v":"PubCrawl durch die Altstadt"},{"$f":"'Input Zusatzangebote'!C31","v":"Erlebnis- und Freizeitaktivitäten"},{"$f":"'Input Zusatzangebote'!D31","v":"ab 22 Euro pro Person"},{"$f":"'Input Zusatzangebote'!E31","v":"4 Stunden"}]
[null,{"$f":"'Input Zusatzangebote'!B32","v":"Fahrradverleih"},{"$f":"'Input Zusatzangebote'!C32","v":"Interaktive und aktive Touren"},{"$f":"'Input Zusatzangebote'!D32","v":"Preis variabel"},{"$f":"'Input Zusatzangebote'!E32","v":"Zeitrahmen variabel"}]
[null,{"$f":"'Input Zusatzangebote'!B33","v":"Entdecke Düsseldorf per Schnitzeljagd"},{"$f":"'Input Zusatzangebote'!C33","v":"Interaktive und aktive Touren"},{"$f":"'Input Zusatzangebote'!D33","v":"ab 39,90 Euro pro Person"},{"$f":"'Input Zusatzangebote'!E33","v":"3,5 Stunden"}]

{"sheet":"Buchungstool","index":1,"n_rows":24,"n_cols":21,"rows_kept":24,"cut":false,"hidden":false,"merged":[[5,5,5,7],[2,16,2,18],[3,16,3,18],[4,1,4,2],[2,6,2,7],[3,6,3,7],[4,6,4,7],[4,4,4,5],[2,8,2,10],[2,11,2,12],[3,11,3,12],[2,1,2,3],[2,4,2,5],[3,4,3,5]]}
[]
[]
[null,"ERGO - Akademie Campus - Buchungstool",null,null,"Auftraggeber:",null,null,null,"Ansprechpartner:",null,null,null,null,null,"Kostenstelle:"]
[null,null,null,null,"RD/Einheit:",null,null,null,null,null,"Telefon:"]
[null,"Veranstaltungsart:",null,null,"Buchende Einheit:"]
[]
[null,"Wunschtermine\nGanztags von \n09:00 - 18:00 Uhr","Uhrzeit\nvon/bis","Titel der \nVeranstaltung","Anzahl Personen\n(Mindestens 10)\n(Ausnahme\nContent\nRaum)",{"$f":"'Input Buchungstool '!B7","v":"Tagungsraum \n30 qm \n(Max. 12 Personen)"},{"$f":"'Input Buchungstool '!B8","v":"Tagungsraum\n60 qm\n(Max. 30 Personen)"},{"$f":"'Input Buchungstool '!B9","v":"Tagungsraum\n100 qm\n(Max. 50 Personen)"},{"$f":"'Input Buchungstool '!B10","v":"Zusätzlicher Gruppenarbeits-\nraum (30 qm für 12 Personen)"},{"$f":"'Input Buchungstool '!B12","v":"Content-Raum (incl. Nutzung Technik)\nPreis pro Stunde \n(Max. 10 Personen)"},{"$f":"'Input Buchungstool '!B11","v":"Content-Raum (incl. Nutzung Technik)\nPreis pro Tag \n(Max. 10 Personen)"},{"$f":"'Input Buchungstool '!B13","v":"Getränkepauschale Heißgetränke & Softgetränke"},{"$f":"'Input Buchungstool '!B14","v":"Großes Frühstück\n(Incl. Anlieferung\npauschal 50,-- )\n"},{"$f":"'Input Buchungstool '!B15","v":"Mittagessen\n(Incl. Anlieferung, Auf- u. Abbau\npauschal 100,--)"},{"$f":"'Input Buchungstool '!B16","v":"Snacks (Kuchen)\nAb 14:30 Uhr\n(Nur in Kombination\nmit Mittagessen)"},{"$f":"'Input Buchungstool '!B17","v":"Kleines Frühstück\n(Belegte Brötchen)\n(Plus Anlieferung\npauschal 50,--)"},{"$f":"'Input Buchungstool '!B19","v":"Übernachtung mit Frühstück\nim b´mine-Hotel \n(Bitte über MICE selbst buchen)"},{"$f":"'Input Buchungstool '!B20","v":"Übernachtung mit Frühstück &\nAbendessen im b´mine-Hotel\n(Bitte über MICE selbst buchen)"},{"$f":"'Input Buchungstool '!B21","v":"Flipchart"},{"$f":"'Input Buchungstool '!B22","v":"Team-Events\nInfos auf Campus Homepage\n(Kostenfrei  zur Raumbuchung)"},"SUMME"]
[null,"Preise",null,null,null,{"$f":"'Input Buchungstool '!C7","v":250},{"$f":"'Input Buchungstool '!C8","v":350},{"$f":"'Input Buchungstool '!C9","v":800},{"$f":"'Input Buchungstool '!C10","v":250},{"$f":"'Input Buchungstool '!C12","v":100},{"$f":"'Input Buchungstool '!C11","v":500},{"$f":"'Input Buchungstool '!C13","v":15.9},{"$f":"'Input Buchungstool '!D14","v":15.8},{"$f":"'Input Buchungstool '!D15","v":24.3},{"$f":"'Input Buchungstool '!D16","v":4.5},{"$f":"'Input Buchungstool '!D17","v":5.9},{"$f":"'Input Buchungstool '!D19","v":105},{"$f":"'Input Buchungstool '!D20","v":150},{"$f":"'Input Buchungstool '!D21","v":10},{"$f":"'Input Buchungstool '!D22","v":"Kostenfrei"}]
[null,"Datum eintragen",null,null,null,null,null,null,null,null,null,{"$f":"IF(OR(F9=\"x\", G9=\"x\", H9=\"x\", K9=\"x\",J9=1,J9=2,J9=3,J9=4,J9=5), \"x\", \"\")","v":""},null,null,null,null,null,null,null,null,{"$f":"IF(F9=\"x\",$F$8,0) +\nIF(G9=\"x\",$G$8,0) +\nIF(H9=\"x\",$H$8,0) +\nIF(I9=\"x\",$I$8,0) +\nIF(OR(J9=1,J9=2,J9=3,J9=4,J9=5),J9*$J$8,0) +\nIF(K9=\"x\",$K$8,0) +\nIF(L9=\"x\",$L$8*E9,0) +\nIF(M9=\"x\",$M$8*E9+'Input Conferencing Services'!$C$18,0) +\nIF(N9=\"x\",$N$8*E9+'Input Conferencing Services'!$C$17,0) +\nIF(O9=\"x\",$O$8*E9,0) +\nIF(P9=\"x\",$P$8*E9+50,0)+\nIF(Q9=\"x\",$Q$8* E9, 0) +\nIF(R9=\"x\",$R$8* E9, 0) +\nIF(S9=\"x\",$S$8, 0)","v":0}]
[null,"Datum eintragen",null,null,null,null,null,null,null,null,null,{"$f":"IF(OR(F10=\"x\", G10=\"x\", H10=\"x\", K10=\"x\",J10=1,J10=2,J10=3,J10=4,J10=5), \"x\", \"\")","v":""},null,null,null,null,null,null,null,null,{"$f":"IF(F10=\"x\",$F$8,0) +\nIF(G10=\"x\",$G$8,0) +\nIF(H10=\"x\",$H$8,0) +\nIF(I10=\"x\",$I$8,0) +\nIF(OR(J10=1,J10=2,J10=3,J10=4,J10=5),J10*$J$8,0) +\nIF(K10=\"x\",$K$8,0) +\nIF(L10=\"x\",$L$8*E10,0) +\nIF(M10=\"x\",$M$8*E10+'Input Conferencing Services'!$C$18,0) +\nIF(N10=\"x\",$N$8*E10+'Input Conferencing Services'!$C$17,0) +\nIF(O10=\"x\",$O$8*E10,0) +\nIF(P10=\"x\",$P$8*E10+50,0)+\nIF(Q10=\"x\",$Q$8* E10, 0) +\nIF(R10=\"x\",$R$8* E10, 0) +\nIF(S10=\"x\",$S$8, 0)","v":0}]
[null,"Datum eintragen",null,null,null,null,null,null,null,null,null,"",null,null,null,null,null,null,null,null,{"$f":"IF(F11=\"x\",$F$8,0) +\nIF(G11=\"x\",$G$8,0) +\nIF(H11=\"x\",$H$8,0) +\nIF(I11=\"x\",$I$8,0) +\nIF(OR(J11=1,J11=2,J11=3,J11=4,J11=5),J11*$J$8,0) +\nIF(K11=\"x\",$K$8,0) +\nIF(L11=\"x\",$L$8*E11,0) +\nIF(M11=\"x\",$M$8*E11+'Input Conferencing Services'!$C$18,0) +\nIF(N11=\"x\",$N$8*E11+'Input Conferencing Services'!$C$17,0) +\nIF(O11=\"x\",$O$8*E11,0) +\nIF(P11=\"x\",$P$8*E11+50,0)+\nIF(Q11=\"x\",$Q$8* E11, 0) +\nIF(R11=\"x\",$R$8* E11, 0) +\nIF(S11=\"x\",$S$8, 0)","v":0}]
[null,"Datum eintragen",null,null,null,null,null,null,null,null,null,"",null,null,null,null,null,null,null,null,{"$f":"IF(F12=\"x\",$F$8,0) +\nIF(G12=\"x\",$G$8,0) +\nIF(H12=\"x\",$H$8,0) +\nIF(I12=\"x\",$I$8,0) +\nIF(OR(J12=1,J12=2,J12=3,J12=4,J12=5),J12*$J$8,0) +\nIF(K12=\"x\",$K$8,0) +\nIF(L12=\"x\",$L$8*E12,0) +\nIF(M12=\"x\",$M$8*E12+'Input Conferencing Services'!$C$18,0) +\nIF(N12=\"x\",$N$8*E12+'Input Conferencing Services'!$C$17,0) +\nIF(O12=\"x\",$O$8*E12,0) +\nIF(P12=\"x\",$P$8*E12+50,0)+\nIF(Q12=\"x\",$Q$8* E12, 0) +\nIF(R12=\"x\",$R$8* E12, 0) +\nIF(S12=\"x\",$S$8, 0)","v":0}]
[null,"Datum eintragen",null,null,null,null,null,null,null,null,null,"",null,null,null,null,null,null,null,null,{"$f":"IF(F13=\"x\",$F$8,0) +\nIF(G13=\"x\",$G$8,0) +\nIF(H13=\"x\",$H$8,0) +\nIF(I13=\"x\",$I$8,0) +\nIF(OR(J13=1,J13=2,J13=3,J13=4,J13=5),J13*$J$8,0) +\nIF(K13=\"x\",$K$8,0) +\nIF(L13=\"x\",$L$8*E13,0) +\nIF(M13=\"x\",$M$8*E13+'Input Conferencing Services'!$C$18,0) +\nIF(N13=\"x\",$N$8*E13+'Input Conferencing Services'!$C$17,0) +\nIF(O13=\"x\",$O$8*E13,0) +\nIF(P13=\"x\",$P$8*E13+50,0)+\nIF(Q13=\"x\",$Q$8* E13, 0) +\nIF(R13=\"x\",$R$8* E13, 0) +\nIF(S13=\"x\",$S$8, 0)","v":0}]
[null,"Datum eintragen",null,null,null,null,null,null,null,null,null,"",null,null,null,null,null,null,null,null,{"$f":"IF(F14=\"x\",$F$8,0) +\nIF(G14=\"x\",$G$8,0) +\nIF(H14=\"x\",$H$8,0) +\nIF(I14=\"x\",$I$8,0) +\nIF(OR(J14=1,J14=2,J14=3,J14=4,J14=5),J14*$J$8,0) +\nIF(K14=\"x\",$K$8,0) +\nIF(L14=\"x\",$L$8*E14,0) +\nIF(M14=\"x\",$M$8*E14+'Input Conferencing Services'!$C$18,0) +\nIF(N14=\"x\",$N$8*E14+'Input Conferencing Services'!$C$17,0) +\nIF(O14=\"x\",$O$8*E14,0) +\nIF(P14=\"x\",$P$8*E14+50,0)+\nIF(Q14=\"x\",$Q$8* E14, 0) +\nIF(R14=\"x\",$R$8* E14, 0) +\nIF(S14=\"x\",$S$8, 0)","v":0}]
[null,"Datum eintragen",null,null,null,null,null,null,null,null,null,"",null,null,null,null,null,null,null,null,{"$f":"IF(F15=\"x\",$F$8,0) +\nIF(G15=\"x\",$G$8,0) +\nIF(H15=\"x\",$H$8,0) +\nIF(I15=\"x\",$I$8,0) +\nIF(OR(J15=1,J15=2,J15=3,J15=4,J15=5),J15*$J$8,0) +\nIF(K15=\"x\",$K$8,0) +\nIF(L15=\"x\",$L$8*E15,0) +\nIF(M15=\"x\",$M$8*E15+'Input Conferencing Services'!$C$18,0) +\nIF(N15=\"x\",$N$8*E15+'Input Conferencing Services'!$C$17,0) +\nIF(O15=\"x\",$O$8*E15,0) +\nIF(P15=\"x\",$P$8*E15+50,0)+\nIF(Q15=\"x\",$Q$8* E15, 0) +\nIF(R15=\"x\",$R$8* E15, 0) +\nIF(S15=\"x\",$S$8, 0)","v":0}]
[null,"Datum eintragen",null,null,null,null,null,null,null,null,null,"",null,null,null,null,null,null,null,null,{"$f":"IF(F16=\"x\",$F$8,0) +\nIF(G16=\"x\",$G$8,0) +\nIF(H16=\"x\",$H$8,0) +\nIF(I16=\"x\",$I$8,0) +\nIF(OR(J16=1,J16=2,J16=3,J16=4,J16=5),J16*$J$8,0) +\nIF(K16=\"x\",$K$8,0) +\nIF(L16=\"x\",$L$8*E16,0) +\nIF(M16=\"x\",$M$8*E16+'Input Conferencing Services'!$C$18,0) +\nIF(N16=\"x\",$N$8*E16+'Input Conferencing Services'!$C$17,0) +\nIF(O16=\"x\",$O$8*E16,0) +\nIF(P16=\"x\",$P$8*E16+50,0)+\nIF(Q16=\"x\",$Q$8* E16, 0) +\nIF(R16=\"x\",$R$8* E16, 0) +\nIF(S16=\"x\",$S$8, 0)","v":0}]
[null,"Datum eintragen",null,null,null,null,null,null,null,null,null,"",null,null,null,null,null,null,null,null,{"$f":"IF(F17=\"x\",$F$8,0) +\nIF(G17=\"x\",$G$8,0) +\nIF(H17=\"x\",$H$8,0) +\nIF(I17=\"x\",$I$8,0) +\nIF(OR(J17=1,J17=2,J17=3,J17=4,J17=5),J17*$J$8,0) +\nIF(K17=\"x\",$K$8,0) +\nIF(L17=\"x\",$L$8*E17,0) +\nIF(M17=\"x\",$M$8*E17+'Input Conferencing Services'!$C$18,0) +\nIF(N17=\"x\",$N$8*E17+'Input Conferencing Services'!$C$17,0) +\nIF(O17=\"x\",$O$8*E17,0) +\nIF(P17=\"x\",$P$8*E17+50,0)+\nIF(Q17=\"x\",$Q$8* E17, 0) +\nIF(R17=\"x\",$R$8* E17, 0) +\nIF(S17=\"x\",$S$8, 0)","v":0}]
[null,"Datum eintragen",null,null,null,null,null,null,null,null,null,"",null,null,null,null,null,null,null,null,{"$f":"IF(F18=\"x\",$F$8,0) +\nIF(G18=\"x\",$G$8,0) +\nIF(H18=\"x\",$H$8,0) +\nIF(I18=\"x\",$I$8,0) +\nIF(OR(J18=1,J18=2,J18=3,J18=4,J18=5),J18*$J$8,0) +\nIF(K18=\"x\",$K$8,0) +\nIF(L18=\"x\",$L$8*E18,0) +\nIF(M18=\"x\",$M$8*E18+'Input Conferencing Services'!$C$18,0) +\nIF(N18=\"x\",$N$8*E18+'Input Conferencing Services'!$C$17,0) +\nIF(O18=\"x\",$O$8*E18,0) +\nIF(P18=\"x\",$P$8*E18+50,0)+\nIF(Q18=\"x\",$Q$8* E18, 0) +\nIF(R18=\"x\",$R$8* E18, 0) +\nIF(S18=\"x\",$S$8, 0)","v":0}]
[null,"GESAMTSUMME",null,null,null,null,null,null,null,null,null,null,null,null,null,null,null,null,null,null,{"$f":"SUM(U9:U18)","v":0}]
[null,{"$f":"\"Bei Frühstück, Mittagessen, oder Kuchen fällt pro Person einmalig eine Geschirrpauschale von \" & TEXT('Input Conferencing Services'!F16,\"0,00 €\") & \" an. Diese wird automatisch mit im Endpreis berücksichtigt. Die Getränkepauschale ist immer bei Raumbuchung enthalten. \"","v":"Bei Frühstück, Mittagessen, oder Kuchen fällt pro Person einmalig eine Geschirrpauschale von 5,90 € an. Diese wird automatisch mit im Endpreis berücksichtigt. Die Getränkepauschale ist immer bei Raumbuchung enthalten. "}]
[]
[null,"Stornobedingungen:"]
[]
[null,"Bis zu 28 Tagen, 100 % kostenfrei   -   bis zu 21 Tagen, 70 % kostenfrei   -   bis zu 14 Tagen, 40 % kostenfrei   -   bis zu 7 Tagen, 20 % kostenfrei   -   bis Veranstaltungsbeginn, 10 % kostenfrei"]

{"sheet":"Input Buchungstool ","index":2,"n_rows":24,"n_cols":11,"rows_kept":24,"cut":false,"hidden":true,"merged":[[4,2,4,3]]}
[]
[]
[null,"ERGO - Akademie Campus Belegung - Input Buchungstool"]
[]
[null,"Leistungen","Preise",null,null,"Drop-Down ","Drop-Down VA Art","Drop-Down Bucher","Drop-Down Stunden Contentraum","Drop-Down Team-Events",2]
[null,null,"Halbtags","Ganztags",null,"Ganztags","Seminar","ERGO AD",1,"Escape Game \"Zeitreise Mission\" (90 min)"]
[null,"Tagungsraum \n30 qm \n(Max. 12 Personen)",{"$f":"Übersicht!G7","v":250},{"$f":"Übersicht!D7","v":200},null,null,"Event","ERGO ID",2,"Leadership Challenge Parcours (45 min)"]
[null,"Tagungsraum\n60 qm\n(Max. 30 Personen)",{"$f":"Übersicht!G8","v":350},{"$f":"Übersicht!D8","v":300},null,"x","Workshop","ERGO sAD",3,"Campus Olympiade (60 min)"]
[null,"Tagungsraum\n100 qm\n(Max. 50 Personen)",{"$f":"Übersicht!G9","v":800},{"$f":"Übersicht!D9","v":750},null,null,"Offsite","Extern",4,"Weihnachtsrallye \n(90 min)"]
[null,"Zusätzlicher Gruppenarbeits-\nraum (30 qm für 12 Personen)",250,null,null,null,"Content",null,5]
[null,"Content-Raum (incl. Nutzung Technik)\nPreis pro Tag \n(Max. 10 Personen)",500,null,null,null,"Andere"]
[null,"Content-Raum (incl. Nutzung Technik)\nPreis pro Stunde \n(Max. 10 Personen)",100]
[null,"Getränkepauschale Heißgetränke & Softgetränke",{"$f":"Übersicht!H7","v":15.9},{"$f":"Übersicht!E7","v":15.9}]
[null,"Großes Frühstück\n(Incl. Anlieferung\npauschal 50,-- )\n",null,{"$f":"Übersicht!H16","v":15.8}]
[null,"Mittagessen\n(Incl. Anlieferung, Auf- u. Abbau\npauschal 100,--)",null,{"$f":"Übersicht!H17","v":24.3}]
[null,"Snacks (Kuchen)\nAb 14:30 Uhr\n(Nur in Kombination\nmit Mittagessen)",null,{"$f":"Übersicht!H18","v":4.5}]
[null,"Kleines Frühstück\n(Belegte Brötchen)\n(Plus Anlieferung\npauschal 50,--)",null,{"$f":"Übersicht!H23","v":5.9}]
[null,"Geschirrservice",null,{"$f":"Übersicht!H19","v":5.9}]
[null,"Übernachtung mit Frühstück\nim b´mine-Hotel \n(Bitte über MICE selbst buchen)",null,{"$f":"Übersicht!H20","v":105}]
[null,"Übernachtung mit Frühstück &\nAbendessen im b´mine-Hotel\n(Bitte über MICE selbst buchen)",null,{"$f":"Übersicht!H21","v":150}]
[null,"Flipchart",null,{"$f":"Übersicht!H22","v":10}]
[null,"Team-Events\nInfos auf Campus Homepage\n(Kostenfrei  zur Raumbuchung)",null,"Kostenfrei"]
[]
[null,"Aktuell ist das Sheet \"Input Buchungstool\" mit dem Sheet \"Übersicht\" verlinkt. Wenn das Buchungstool verschickt werden soll, nur die zwei Tabs zum Buchungstool drinlassen und hier Hard-Copy Zahlen einfügen. Diese müssten dann manuell geändert werden. "]

{"sheet":"Input Raummiete","index":3,"n_rows":37,"n_cols":13,"rows_kept":37,"cut":false,"hidden":true,"merged":[[32,10,32,11]]}
[]
[]
[null,"ERGO - Akademie Campus Belegung - Raummiete"]
[]
[null,"Parameter","Input ","Beschreibung"]
[null,"Jahresmiete Gesamt (€) (fiktiv)",300000,"Fiktive Jahresmiete für die gesamte Bürofläche in €"]
[null,"ERGO Gourmet Betreuungspauschale",null,"Pauschale pro Tag: 204 € an 248 Werktagen für 2025"]
[null,"Lieferkosten (2x am Tag)",null,"150 € am Tag für 2 Lieferungen  "]
[null,"Jahresmiete (inkl. Fixkosten, (€))",{"$f":"C6+C7+C8","v":300000},"Fiktive Gesamtmiete + ERGO Gourmet Pauschale"]
[null,"Gesamtfläche (qm)",2018,"Gesamtbürofläche in qm"]
[null,"Tage Gesamt verfügbar",248,"Verfügbare Werktage 2025 (Abzüglich Feiertagen und Wochenenden)"]
[null,"Leerstandsquote (%) der verfügbaren Tage",0.78488888888888897,0.5]
[null,"Auslastung, der von der Akademie nicht genutzen Räume ",0.3]
[]
[null,"Raumübersicht"]
[null,"Gruppenräume - Raumname","Fläche (in qm)","Raumkategorie"]
[null,"Athen (Olympia)",33.590000000000003,"Klein (ca. 33 qm)"]
[null,"London (Olympia)",32.96,"Klein (ca. 33 qm)"]
[null,"Paris (Olympia)",36.42,"Klein (ca. 33 qm)"]
[null,"Olympia",{"$f":"C17+C18+C19","v":102.97000000000001},"Groß (ca. 100 qm)"]
[null,"Maracana",{"$f":"32.73+31.23","v":63.959999999999994},"Mittel (ca. 60 qm)"]
[null,"Hawaii",33.25,"Klein (ca. 33 qm)"]
[null,"Wimbledon",32.369999999999997,"Klein (ca. 33 qm)"]
[null,"Los Angeles",32.92,"Klein (ca. 33 qm)"]
[null,"Kalifornien",32.96,"Klein (ca. 33 qm)","Räume gerundet"]
[null,"Summe ",{"$f":"SUM(C17:C19,C21:C25)","v":298.43},"Klein (ca. 33 qm)",33]
[null,null,null,"Mittel (ca. 60 qm)",60]
[null,null,null,"Groß (ca. 100 qm)",100]
[]
[null,"Szenarien"]
[]
[null,"Raumgröße","Szenario 1: Gesamtfläche","Szenario 2. Raumfläche (300 qm) ","Szenario 3.1\n (78% Leerstandsquote der 300 qm)","Szenario 3.2\n (50% Leerstandsquote )","Szenario 4.1:\n 78% Leerstand + 30% Auslastung der freien Räume ","Szenario 4.2: \n50% Leerstand + 30% Auslastung der freien Räume ","Szenario 5: \nMietzahlungen der Akademie (300 qm); Auslastung (100-78%=) 22%+30% ","Vergleich Markt (Durchschnittswerte)","Empfehlung \nGanztags","Empfehlung \nHalbtags"]
[null,"Erklärung","- Der Gesamtmietpreis inklusive Fixkosten wird auf die gesamte Quadratmeterfläche verteilt (2.018 qm)\n- Die Kosten pro Quadratmeter werden anhand der jeweiligen Raumgröße multipliziert\n- Keine Differenzierung zwischen genutzten und ungenutzten Flächen","- Der Gesamtmietpreis wird nur auf die vermietbare Fläche der Meetingräume (300 qm) umgelegt\n- Diese 300 qm setzen sich aus der Summe der Meetingräume zusammen\n- Die Mietkosten pro Raum werden auf Basis der 248 Werktage berechnet, um eine tägliche Raumkostenberechnung zu ermöglichen","- Aufbauend auf Szenario 2 wird berücksichtigt, dass die Akademie einen Teil der Räume selbst nutzt\n- 22 % der Fläche sind bereits durch interne Schulungen der Akademie belegt, wodurch nur 78 % der Fläche (Leerstandsquote) zur Vermietung an Externe zur Verfügung stehen\n- Die Mietkosten werden nur auf die ungenutzte Fläche umgelegt und basieren auf den 248 Werktagen\n- Diese Berechnung ermöglicht ein realistischeres Bild für externe Mietpreise","- Aufbauend auf Szenario 3.1 wird angenommen, dass die Akademie nur 50 % der Räume nutzt, sodass die restlichen 50 % zur Vermietung bereitstehen\n- Die Mietkosten werden auf die verbleibende ungenutzte Fläche (50 %) verteilt\n- Die Berechnung basiert weiterhin auf den 248 Werktagen","- Aufbauend auf Szenario 3.1 wird zusätzlich angenommen, dass nicht alle zur Vermietung stehenden Räume gebucht werden\n- Es wird von einer tatsächlichen Auslastung von 30 % der freien Räume ausgegangen (innerhalb der 78 % Leerstandsfläche)\n- Die Mietkosten werden entsprechend nur auf diese 30 % vermietete Fläche umgelegt","- Aufbauend auf Szenario 3.2 wird angenommen, dass nur 30 % der zur Vermietung stehenden Räume tatsächlich genutzt werden\n- Die Mietkosten werden auf diese 30 % vermietete Fläche umgelegt, basierend auf der 50 % Leerstandsquote","- Es wird davon ausgegangen, dass die Akademie für die von ihr genutzten Räume Miete zahlt\n- 22 % der Fläche sind durch die Akademie belegt und bringen Miete ein\n- Zusätzlich wird eine 30%ige Auslastung der freien Räume durch externe Vermietung angenommen, sodass insgesamt 52 % der Fläche genutzt werden\n- Die Gesamtmietkosten (+ Fixkosten) werden auf Basis dieser 52 % Gesamtauslastung verteilt","- Es wurden Durchschnitte von in der Größe und Funktionalität vergleichbaren Räumen am Markt genommen","- Basierend auf Marktrecherche und den Erfahrungswerten von Deloitte wurde eine Empfehlung entwickelt, die auch die Ergebnisse der Szenarien berücksichtigt"]
[null,"Klein",{"$f":"$C$9/$C$10*E26/$C$11","v":19.781642635634132},{"$f":"$C$9/$C$26*E26/$C$11","v":133.76455061056086},{"$f":"($C$9/$C$26*E26)/($C$12*$C$11)","v":170.42482382432723},{"$f":"($C$9/$C$26*E26)/($D$12*$C$11)","v":267.52910122112172},{"$f":"($C$9/$C$26*E26)/($C$12*$C$11*$C$13)","v":568.08274608109082},{"$f":"($C$9/$C$26*E26)/($D$12*$C$11*$C$13)","v":891.76367073707252},{"$f":"($C$9/$C$26*E26)/(((1-$C$12)+$C$13)*$C$11)","v":259.6809653785694},{"$f":"'Input Marktdaten'!F15","v":226.14285714285714},200,200,"ggf. wegen Standardabweichung zu reduzieren; -> 200 EUR/ Ganztagestag"]
[null,"Mittel",{"$f":"$C$9/$C$10*E27/$C$11","v":35.966622973880234},{"$f":"$C$9/$C$26*E27/$C$11","v":243.20827383738339},{"$f":"($C$9/$C$26*E27)/($C$12*$C$11)","v":309.86331604423134},{"$f":"($C$9/$C$26*E27)/($D$12*$C$11)","v":486.41654767476678},{"$f":"($C$9/$C$26*E27)/($C$12*$C$11*$C$13)","v":1032.8777201474379},{"$f":"($C$9/$C$26*E27)/($D$12*$C$11*$C$13)","v":1621.3884922492227},{"$f":"($C$9/$C$26*E27)/(((1-$C$12)+$C$13)*$C$11)","v":472.14720977921712},{"$f":"'Input Marktdaten'!F25","v":353.75},300,300]
[null,"Groß",{"$f":"$C$9/$C$10*E28/$C$11","v":59.944371623133726},{"$f":"$C$9/$C$26*E28/$C$11","v":405.34712306230563},{"$f":"($C$9/$C$26*E28)/($C$12*$C$11)","v":516.43886007371896},{"$f":"($C$9/$C$26*E28)/($D$12*$C$11)","v":810.69424612461125},{"$f":"($C$9/$C$26*E28)/($C$12*$C$11*$C$13)","v":1721.4628669123965},{"$f":"($C$9/$C$26*E28)/($D$12*$C$11*$C$13)","v":2702.3141537487045},{"$f":"($C$9/$C$26*E28)/(((1-$C$12)+$C$13)*$C$11)","v":786.91201629869522},{"$f":"'Input Marktdaten'!F35","v":763.625},750,750]
[null,"Content-Raum",{"$f":"$C$9/$C$10*E29/$C$11","v":0},{"$f":"$C$9/$C$26*E29/$C$11","v":0},{"$f":"($C$9/$C$26*E29)/($C$12*$C$11)","v":0},{"$f":"($C$9/$C$26*E29)/($D$12*$C$11)","v":0},{"$f":"($C$9/$C$26*E29)/($C$12*$C$11*$C$13)","v":0},{"$f":"($C$9/$C$26*E29)/($D$12*$C$11*$C$13)","v":0},{"$f":"($C$9/$C$26*E29)/(((1-$C$12)+$C$13)*$C$11)","v":0},{"$f":"'Input Marktdaten'!F36","v":0},500,500]

{"sheet":"Input Marktdaten","index":4,"n_rows":35,"n_cols":10,"rows_kept":35,"cut":false,"hidden":true,"merged":[]}
[]
[]
[null,"ERGO - Akademie Campus Belegung - Weitere Themen"]
[]
[]
[null,"Marktvergleich "]
[null,"Klein","Anbieter","Raumname","Kapazität","Preis pro Tag (8 Stunden)","Technik ","Getränke ","Mahlzeiten","Quelle"]
[null,"Frankfurt","Space Base","Meeting Raum","10 Personen",150,"Nein","Nein","Nein","https://www.spacebase.com/en/venue/meeting-konferenzraum-1052597/"]
[null,"Stuttgart","NCA Studios","CREATIVE SPACE","20 Personen",250,"Ja","Nein","Nein","NCA Studios CREATIVE SPACE in Stuttgart direkt buchen bei Event Inc"]
[null,"Düsseldorf","Regus","Meetingraum","10 Personen",448,"Nein","Nein","Nein","Regus Meeting Rooms"]
[null,"Stuttgart","Kultur und Kongress Zentrum","Seminarraum Stuttgart","10 Personen",{"$f":"7.5*8","v":60},"Nein","Nein","Nein","https://www.eventinc.de/rooms/stuttgart/das-k-kultur-und-kongresszentrum-seminarraum"]
[null,"Düsseldorf","Alte Fabrik","Meetingpoint - Loft 1 ","10 personen",275,"Ja","Nein","Nein","Meetingpoint Alte Fabrik Meeting-Loft 1 in Mettmann direkt buchen bei Event Inc"]
[null,"Düsseldorf","Rheinisches Bildungsinstitut","Meetingraum","10 Personen",160,"Nein","Nein","Nein","https://www.spacebase.com/de/venue/rheinisches-bildungsinstit-5658/"]
[null,"Düsseldorf","FiDUS Business Solutions GmbH","Meetingraum","10 Personen",240,"Nein","Nein","Nein","FiDUS Business Solutions GmbH Cromford 36qm mieten in Ratingen / Düsseldorf"]
[null,null,null,null,"Durchschnitt Kosten",{"$f":"AVERAGE(F8:F14)","v":226.14285714285714}]
[null,"Mittel"]
[null,"Düsseldorf","Campus Fichrenhain 63","Konferenzraum","18 Personen",250,"Ja","Nein","Nein","Campus Fichtenhain 63 Konferenzraum mieten in Krefeld"]
[null,"Düsseldorf Neuss","SleevesUp","Meetingraum","25 Personen",450,"Nein","Nein","Nein","SleevesUp! Neuss Eastside Meetingraum mieten in Neuss"]
[null,"Düsseldorf ","Volkmann Akademie","Tagungsraum ","20 Personen",300,"Nein","Nein","Nein","Volkmann Akademie Workshop- und Tagungsraum 1 mieten in Düsseldorf"]
[null,"Düsseldorf","Design Offices Kaiserteich","Training Room ","25 Personen",750,"Ja","Nein","Nein","Design Offices Düsseldorf Kaiserteich Training Room II mieten in Düsseldorf"]
[null,"Düsseldorf","Room for K","Meetingraum","30 Personen",350,"Ja","Nein","Nein","Room for K Meetingraum mieten in Düsseldorf"]
[null,"Düsseldorf","Verve","Tagunsraum Seide","25 Personen",350,"Nein","Nein","Nein","Verve Tagungsraum Seide mieten in Krefeld"]
[null,"Düsseldorf","Ebinghaus Seminarraum","Seminarraum Pdentia","20 Personen",190,"Nein","Nein","Nein","Ebinghaus Seminarraumvermietung Seminarraum Pudentia mieten in Düsseldorf"]
[null,"Düsseldorf","IT-Schule KIBERone","Großer Konferenzraum","20 Personen",190,"Ja","Nein","Nein","IT-Schule KIBERone Konferenz- und Meetingräume Großer Konferenzraum mieten in Düsseldorf"]
[null,null,null,null,"Durchschnitt Kosten",{"$f":"AVERAGE(F17:F24)","v":353.75}]
[null,"Groß"]
[null,"Düsseldorf","STARTPLATZ","Design Thinking Raum","40 Personen",650,"Nein","Nein","Nein","https://www.spacebase.com/de/venue/design-thinking-raum-san-d-92115/?guest_number=50%2C100&venue_type=meeting-room "]
[null,"Düsseldorf","FiDUS Business Solutions GmbH","Raum 100qm","40 Personen",580,"Nein","Nein","Nein","FiDUS Business Solutions GmbH Peter und Paul 100qm mieten in Ratingen / Düsseldorf"]
[null,"Krefeld","Lern & Denker ","werkStadt","40 Personen",1500,"Nein","Nein","Nein","Rent LERN & DENKER werkStadt Krefeld | Spacebase"]
[null,"Düsseldorf","Medienhafen","Seminarraum","40 Personen",699,"Nein","Nein","Nein","Rent Medienhafen.Office Seminarraum 1-30 Personen Düsseldorf | Spacebase"]
[null,"Düsseldorf","STARTPLATZ","Meeting Raum","40 Personen",750,"Nein","Nein","Nein","Rent STARTPLATZ Düsseldorf Panama Düsseldorf | Spacebase"]
[null,"Köln","Seekabelhaus","Meetingraum","40 Personen",800,"Ja","Nein","Nein","Rent Seekabelhaus Seekabelhaus Cologne | Spacebase"]
[null,"Köln","Hinterhofsalon","Meeting Raum","60 Personen",380,"Ja","Nein","Nein","Rent HINTERHOFSALON HINTERHOFSALON Cologne | Spacebase"]
[null,"Köln","Studio A","Stage","40 Personen",750,"Ja","Nein","Nein","Rent STUDIO A STAGE Cologne | Spacebase"]
[null,null,null,null,"Durchschnitt Kosten",{"$f":"AVERAGE(F27:F34)","v":763.625}]

{"sheet":"Input Conferencing Services","index":5,"n_rows":24,"n_cols":24,"rows_kept":24,"cut":false,"hidden":true,"merged":[[4,6,4,22],[4,1,4,5]]}
[]
[]
[null,"ERGO - Akademie Campus Belegung - Conferencing Services"]
[]
[null,"Positionen und Kosten ERGO Campus ",null,null,null,null,"Vergleichsangebote Preise pro Person"]
[null,"Einzelpositionen","ERGO Gourmet Kosten p.P.","Marge","Preis","Angenommener Preis","Spacebase - Meetingraum ","Regus Düsseldorf","Meetingpoint Alte Fabrik Düsseldrof","FiDUs Business Solutions Meetingraum ","Campus Fichtenhain - Konferenz-raum","STARTPLATZ Design Thinking Raum ","Volkmann Akademie ","Design Offices Düsseldorf Kaiserteich ","Room for K Meetingraum ","Tagunsraum Verve Seide","Seminarraum Pudentia","Lern & Denker werkStadt","STARTPLATZ Meeting Raum","Hinterhof-salon Meetingraum","Studio A Stage Meeting Raum","ERGO Preis","Durchschnitt Markt-vergleich"]
[null,"Frühstück",{"$f":"11.6+C15","v":15.8},0,{"$f":"C7*(1+D7)","v":15.8},{"$f":"ROUND(E7,1)","v":15.8},6.5,15,null,null,6,12.5,null,15.5,8,null,5.4,18,12.5,null,{"$f":"177.5/50","v":3.55},{"$f":"F7","v":15.8},{"$f":"AVERAGE(G7:U7)","v":10.295},{"$f":"V7/W7-1","v":0.5347255949490044}]
[null,"Heißgetränke (ganzer Tag)",8.1,0,8.1,8.1,6,8.5,5,20,6,null,5,null,null,null,null,6,null,5,15,{"$f":"F8","v":8.1},{"$f":"AVERAGE(G8:U8)","v":8.5},{"$f":"V8/W8-1","v":-4.705882352941182E-2}]
[null,"Kaltgetränke (Fancy)",7.8,0,7.8,7.8,5,null,8.9,15,null,null,5,null,2,29,null,29,null,5,null,7.8,12.362500000000001,-0.36905965621840253]
[null,"Kaltgetränke (Standard)",5.0999999999999996,0,5.0999999999999996,5.0999999999999996,3,null,null,null,12,6,null,null,null,15,null,16,6.25,null,null,5.0999999999999996,9.7083333333333339,-0.4746781115879829]
[null,"Getränkepauschale (ganzer Tag)",{"$f":"C8+C9","v":15.899999999999999},0,15.899999999999999,15.9,null,null,null,null,null,null,9,25,10,null,10,null,23,null,null,15.9,{"$f":"AVERAGE(G11:U11)","v":15.4},3.2467532467532534E-2]
[null,"Getränkepauschale (halber Tag)",15.9,0,15.9,15.9,null,null,null,null,null,null,null,null,null,null,null,null,null,null,null,15.9]
[null,"Mittagessen",{"$f":"18.4+C16","v":24.299999999999997},0,{"$f":"C13*(1+D13)","v":24.299999999999997},{"$f":"ROUND(E13,1)","v":24.3},24,27,null,null,12,22,20.6,43.5,20,30,null,28,21.9,18.899999999999999,30,24.3,24.824999999999999,-2.114803625377637E-2]
[null,"Snacks (Kuchen) ",4.5,0,{"$f":"C14*(1+D14)","v":4.5},{"$f":"ROUND(E14,1)","v":4.5},12,null,5.5,null,5,12.5,9.4,11.5,6,null,null,16,12.4,null,{"$f":"272/50","v":5.44},4.5,9.5740000000000016,-0.52997702109880929]
[null,"Geschirrservice (Breakfast)",4.2]
[null,"Geschirrservice (all day) ",5.9,0,5.9,5.9,null,null,null,null,null,null,null,null,null,null,null,null,null,null,null,5.9]
[null,"Lieferung pro Tag",100,0,100,100,null,null,null,null,null,null,null,null,null,null,null,null,null,null,null,100]
[null,"Lieferung einmalig",50]
[null,"Abendessen",54,0,54,45,26,null,null,null,null,null,null,43.5,null,null,null,null,null,null,null,45,34.75,0.29496402877697836]
[null,"Tagungsmedien",15,0,15,15,null,null,null,null,null,null,null,null,null,null,null,null,null,null,null,15]
[null,"Übernachtung",105,0,105,105,null,null,null,null,null,null,null,null,null,null,null,null,null,null,null,105]
[null,"Flipchart",10,0,10,{"$f":"ROUND(E22,1)","v":10},null,null,null,null,null,null,null,null,null,null,null,null,null,null,null,10]
[null,"Kleines Frühstück\n(Belegte Brötchen)",5.9,0,{"$f":"C23*(1+D23)","v":5.9},{"$f":"ROUND(E23,1)","v":5.9}]
[null,null,null,null,null,null,"https://www.spacebase.com/en/venue/meeting-konferenzraum-1052597/","Regus Meeting Rooms","Meetingpoint Alte Fabrik Meeting-Loft 1 in Mettmann direkt buchen bei Event Inc","FiDUS Business Solutions GmbH Cromford 36qm mieten in Ratingen / Düsseldorf","Campus Fichtenhain 63 Konferenzraum mieten in Krefeld","STARTPLATZ Düsseldorf Design Thinking-Raum San Diego mieten in Düsseldorf","Volkmann Akademie Workshop- und Tagungsraum 1 mieten in Düsseldorf","Design Offices Düsseldorf Kaiserteich Training Room II mieten in Düsseldorf","Room for K Meetingraum mieten in Düsseldorf","Verve Tagungsraum Seide mieten in Krefeld","Ebinghaus Seminarraumvermietung Seminarraum Pudentia mieten in Düsseldorf","Rent LERN & DENKER werkStadt Krefeld | Spacebase","Rent STARTPLATZ Düsseldorf Panama Düsseldorf | Spacebase","Rent HINTERHOFSALON HINTERHOFSALON Cologne | Spacebase","Rent STUDIO A STAGE Cologne | Spacebase"]

{"sheet":"Input Zusatzangebote","index":6,"n_rows":33,"n_cols":5,"rows_kept":33,"cut":false,"hidden":true,"merged":[[4,1,4,2]]}
[]
[]
[null,"ERGO - Akademie Campus Belegung - Zusatzangebote"]
[]
[null,"Zusatzangebote "]
[null,"On Campus "]
[null,"Aktivität","Kategorie","Preis","Ungefährer Zeitrahmen"]
[null,"Abendveranstaltung","Networking & Austausch","Abhängig von Organisation","2-3 Stunden"]
[null,"Meet your CEO/Boss","Networking & Austausch","Abhängig von Organisation","1 Stunde"]
[null,"Coffee & Connect Session","Networking & Austausch","Kostenlos","30 Minuten"]
[null,"Brettspielabend","Networking & Austausch","Kostenlos oder ab 5 Euro","2 Stunden"]
[null,"Show-Cooking","Kreatives","Ab 25 Euro pro Person","1-2 Stunden"]
[null,"Kreativ-Workshop (z. B. Malen, Basteln)","Kreatives","Ab 15 Euro pro Person","1,5-2 Stunden"]
[null,"Teamchallenges (z.B. zum Thema Nachhaltigkeit) ","Kreatives","Kostenlos","Variabel"]
[null,"Teambuilding-Quiz","Wellbeing & Teambuilding","Kostenlos","1 Stunde"]
[null,"Sportliche Mini-Challenges (z. B. Team-Staffel)","Wellbeing & Teambuilding","Kostenlos oder ab 10 Euro","1-1,5 Stunden"]
[null,"Yoga-Session","Wellbeing & Teambuilding","Ab 10 Euro pro Person","45 Minuten"]
[]
[]
[]
[null,"Off Campus"]
[null,"Aktivität","Kategorie","Preis","Ungefährer Zeitrahmen"]
[null,"Kulinarische Stadtführung","Kulturelle und Stadtführungen","ab 44 Euro pro Person","2,5 Stunden"]
[null,"Segway-Tour Stadtführung","Kulturelle und Stadtführungen","ab 70 Euro pro Person","2 Stunden"]
[null,"E-Scooter Stadtführung","Kulturelle und Stadtführungen","ab 59 Euro pro Person","2 Stunden"]
[null,"Geführte Tour mit einem Nachtwächter Düsseldorf","Kulturelle und Stadtführungen","ab 20 Euro pro Person","1,5 Stunden"]
[null,"Walking Tour in \"Little Tokyo\"","Kulturelle und Stadtführungen","ab 9 Euro","1,5 Stunden"]
[null,"Medienhafen Tour","Kulturelle und Stadtführungen","ab 20 Euro pro Person","2 Stunden"]
[null,"Bootstour am Rhein","Erlebnis- und Freizeitaktivitäten","ab 25 Euro pro Person","2 Stunden"]
[null,"Brauerei-Tour mit Altbierverkostung","Erlebnis- und Freizeitaktivitäten","ab 27,5 Euro pro Person","2 Stunden"]
[null,"PubCrawl durch die Altstadt","Erlebnis- und Freizeitaktivitäten","ab 22 Euro pro Person","4 Stunden"]
[null,"Fahrradverleih","Interaktive und aktive Touren","Preis variabel","Zeitrahmen variabel"]
[null,"Entdecke Düsseldorf per Schnitzeljagd","Interaktive und aktive Touren","ab 39,90 Euro pro Person","3,5 Stunden"]

{"sheet":"Raumplan","index":7,"n_rows":0,"n_cols":0,"rows_kept":0,"cut":false,"hidden":true,"merged":[]}

{"sheet":"Belegungsplan","index":8,"n_rows":374,"n_cols":17,"rows_kept":374,"cut":false,"hidden":true,"merged":[[87,3,87,5],[58,3,58,5],[59,3,59,5],[60,3,60,5],[65,3,65,5],[66,3,66,5],[72,3,72,5],[73,3,73,5],[79,3,79,5],[80,3,80,5],[81,3,81,5],[86,3,86,5],[128,3,128,5],[88,3,88,5],[92,3,92,5],[93,3,93,5],[94,3,94,5],[95,3,95,5],[96,3,96,5],[100,3,100,5],[101,3,101,5],[107,3,107,5],[108,3,108,5],[127,3,127,5],[177,3,177,5],[129,3,129,5],[130,3,130,5],[131,3,131,5],[143,3,143,5],[144,3,144,5],[156,3,156,5],[157,3,157,5],[158,3,158,5],[159,3,159,5],[164,3,164,5],[165,3,165,5],[205,3,205,5],[178,3,178,5],[184,3,184,5],[185,3,185,5],[192,3,192,5],[193,3,193,5],[197,3,197,5],[198,3,198,5],[199,3,199,5],[200,3,200,5],[201,3,201,5],[204,3,204,5],[236,3,236,5],[206,3,206,5],[207,3,207,5],[208,3,208,5],[212,3,212,5],[213,3,213,5],[214,3,214,5],[227,3,227,5],[228,3,228,5],[233,3,233,5],[234,3,234,5],[235,3,235,5],[289,3,289,5],[240,3,240,5],[241,3,241,5],[262,3,262,5],[263,3,263,5],[268,3,268,5],[269,3,269,5],[275,3,275,5],[276,3,276,5],[282,3,282,5],[283,3,283,5],[288,3,288,5],[317,3,317,5],[290,3,290,5],[291,3,291,5],[292,3,292,5],[296,3,296,5],[297,3,297,5],[298,3,298,5],[303,3,303,5],[304,3,304,5],[310,3,310,5],[311,3,311,5],[316,3,316,5],[346,3,346,5],[318,3,318,5],[319,3,319,5],[320,3,320,5],[325,3,325,5],[326,3,326,5],[345,3,345,5]]}
[]
["Datum","T","KW","Olympia\nAthen ca. 13 Pax","Olympia\nLondon ca. 13 Pax","Olympia\nParis ca. 13 Pax","Maracana\nNicht teilbar ca. 40 Pax","IT-Raum 1\nca. 20 Pax","Hawaii","Wimledon","Los Angeles","Kalifornien","Oberstdorf","Gruppenraum G 2","Gruppenraum G 3","Gruppenraum G 4","Bemerkungen"]
[null,null,null,null,"Kann zu einem großen Raum werden ca. 40 Pax",null,null,null,"10 Personen","10 Personen","10 Personen","10 Personen","Gruppenraum"]
["2025-01-01","Mi",1]
["2025-01-02","Do",1]
["2025-01-03","Fr",1]
["2025-01-04","Sa"]
["2025-01-05","So"]
["2025-01-06","Mo",2]
["2025-01-07","Di",2]
["2025-01-08","Mi",2]
["2025-01-09","Do",2]
["2025-01-10","Fr",2]
["2025-01-11","Sa"]
["2025-01-12","So"]
["2025-01-13","Mo",3]
["2025-01-14","Di",3]
["2025-01-15","Mi",3]
["2025-01-16","Do",3]
["2025-01-17","Fr",3]
["2025-01-18","Sa"]
["2025-01-19","So"]
["2025-01-20","Mo",4]
["2025-01-21","Di",4]
["2025-01-22","Mi",4]
["2025-01-23","Do",4]
["2025-01-24","Fr",4]
["2025-01-25","Sa"]
["2025-01-26","So"]
["2025-01-27","Mo",5]
["2025-01-28","Di",5]
["2025-01-29","Mi",5]
["2025-01-30","Do",5]
["2025-01-31","Fr",5]
["2025-02-01","Sa"]
["2025-02-02","So"]
["2025-02-03","Mo",6]
["2025-02-04","Di",6]
["2025-02-05","Mi",6]
["2025-02-06","Do",6]
["2025-02-07","Fr",6]
["2025-02-08","Sa"]
["2025-02-09","So"]
["2025-02-10","Mo",7]
["2025-02-11","Di",7]
["2025-02-12","Mi",7]
["2025-02-13","Do",7]
["2025-02-14","Fr",7]
["2025-02-15","Sa"]
["2025-02-16","So"]
["2025-02-17","Mo",8]
["2025-02-18","Di",8]
["2025-02-19","Mi",8]
["2025-02-20","Do",8,"Bereichstagung Akademie","Bereichstagung Akademie","Bereichstagung Akademie","Bereichstagung Akademie","Bereichstagung Akademie","Bereichstagung Akademie","Bereichstagung Akademie","Bereichstagung Akademie","Bereichstagung Akademie","Bereichstagung Akademie","Bereichstagung Akademie","Bereichstagung Akademie","Bereichstagung Akademie","Bereichstagung Akademie"]
["2025-02-21","Fr",8,"Einweihung Campus","Einweihung Campus","Einweihung Campus","Einweihung Campus","Einweihung Campus","Einweihung Campus","Einweihung Campus","Einweihung Campus","Einweihung Campus","Einweihung Campus","Einweihung Campus","Einweihung Campus","Einweihung Campus","Einweihung Campus"]
["2025-02-22","Sa"]
["2025-02-23","So"]
["2025-02-24","Mo",9,"Beginn 100 Tageplan","Beginn 100 Tageplan","Beginn 100 Tageplan","Beginn 100 Tageplan","Beginn 100 Tageplan","Beginn 100 Tageplan","Beginn 100 Tageplan","Beginn 100 Tageplan","Beginn 100 Tageplan"]
["2025-02-25","Di",9,"Trainerqualifikation \"Methodik & Didaktik im Campus\"\nGruppenübergreifend",null,null,null,null,"Trainerqualifikation \"Methodik & Didaktik im Campus\"\nGruppenübergreifend","Trainerqualifikation \"Methodik & Didaktik im Campus\"\nGruppenübergreifend",null,null,"Trainerqualifikation \"Methodik & Didaktik im Campus\"\nGruppenübergreifend","Trainerqualifikation \"Methodik & Didaktik im Campus\"\nGruppenübergreifend","Trainerqualifikation \"Methodik & Didaktik im Campus\"\nGruppenübergreifend","Trainerqualifikation \"Methodik & Didaktik im Campus\"\nGruppenübergreifend"]
["2025-02-26","Mi",9,"Trainerqualifikation \"Methodik & Didaktik im Campus\"\nGruppenübergreifend",null,null,null,null,"Trainerqualifikation \"Methodik & Didaktik im Campus\"\nGruppenübergreifend","Trainerqualifikation \"Methodik & Didaktik im Campus\"\nGruppenübergreifend",null,null,"Trainerqualifikation \"Methodik & Didaktik im Campus\"\nGruppenübergreifend","Trainerqualifikation \"Methodik & Didaktik im Campus\"\nGruppenübergreifend","Trainerqualifikation \"Methodik & Didaktik im Campus\"\nGruppenübergreifend","Trainerqualifikation \"Methodik & Didaktik im Campus\"\nGruppenübergreifend"]
["2025-02-27","Do",9,"Trainerqualifikation \"Methodik & Didaktik im Campus\"\nGruppenübergreifend",null,null,null,null,"Trainerqualifikation \"Methodik & Didaktik im Campus\"\nGruppenübergreifend","Trainerqualifikation \"Methodik & Didaktik im Campus\"\nGruppenübergreifend",null,null,"Trainerqualifikation \"Methodik & Didaktik im Campus\"\nGruppenübergreifend","Trainerqualifikation \"Methodik & Didaktik im Campus\"\nGruppenübergreifend","Trainerqualifikation \"Methodik & Didaktik im Campus\"\nGruppenübergreifend","Trainerqualifikation \"Methodik & Didaktik im Campus\"\nGruppenübergreifend"]
["2025-02-28","Fr",9]
["2025-03-01","Sa"]
["2025-03-02","So"]
["2025-03-03","Mo",10]
["2025-03-04","Di",10,"Erfolgreich im Vertrieb mit persolog 1\n(Bundesweit)",null,null,null,null,null,null,null,null,"Erfolgreich im Vertrieb mit persolog 1\nBundesweit"]
["2025-03-05","Mi",10,"Erfolgreich im Vertrieb mit persolog 1\n(Bundesweit)",null,null,null,null,null,null,null,null,"Erfolgreich im Vertrieb mit persolog 1\nBundesweit"]
["2025-03-06","Do",10]
["2025-03-07","Fr",10]
["2025-03-08","Sa"]
["2025-03-09","So"]
["2025-03-10","Mo",11]
["2025-03-11","Di",11,"Generationenberatung 1\nVDW",null,null,null,null,"Generationenberatung 1\nVDW","Firmenkunde Vermögensschaden\nVDW","Generationenberatung 1\nVDW/Gruppenraum",null,"Firmenkunde Vermögensschaden\nVDW/Gruppenraum","Generationenberatung 1\nVDW/Gruppenraum"]
["2025-03-12","Mi",11,"Generationenberatung 1\nVDW",null,null,null,null,"Generationenberatung 1\nVDW","Firmenkunde Vermögensschaden\nVDW","Generationenberatung 1\nVDW/Gruppenraum",null,"Firmenkunde Vermögensschaden\nVDW/Gruppenraum","Generationenberatung 1\nVDW/Gruppenraum"]
["2025-03-13","Do",11]
["2025-03-14","Fr",11]
["2025-03-15","Sa"]
["2025-03-16","So"]
["2025-03-17","Mo",12]
["2025-03-18","Di",12,"Von der Vision zur Wirklichkeit\nBundesweit)",null,null,"Firmenkunde Cyber-Versicherung\nVDW",null,"Vorsorgeaspekte für jede Lebensphase 1\nVDW","Firmenkunde Cyber-Versicherung (Gruppenraum)\nVDW","Vorsorgeaspekte für jede Lebensphase 1\nVDW/Gruppenraum",null,"Von der Vision zur Wirklichkeit\nBundesweit) Gruppenraum","Firmenkunde Cyber-Versicherung (Gruppenraum)\nVDW","Vorsorgeaspekte für jede Lebensphase 1\nVDW/Gruppenraum"]
["2025-03-19","Mi",12,"Von der Vision zur Wirklichkeit\nBundesweit)",null,null,"Wertpapierberatung Aufbauwissen","Firmenkunde Cyber-Versicherung\nVDW","Vorsorgeaspekte für jede Lebensphase 1\nVDW","Firmenkunde Cyber-Versicherung (Gruppenraum)\nVDW","Vorsorgeaspekte für jede Lebensphase 1\nVDW/Gruppenraum","Wertpapierberatung Aufbauwissen","Von der Vision zur Wirklichkeit\nBundesweit) Gruppenraum","Firmenkunde Cyber-Versicherung (Gruppenraum)\nVDW","Vorsorgeaspekte für jede Lebensphase 1\nVDW/Gruppenraum","Wertpapierberatung Aufbauwissen"]
["2025-03-20","Do",12,"Von der Vision zur Wirklichkeit\nBundesweit)",null,null,"Wertpapierberatung Aufbauwissen",null,null,null,null,"Wertpapierberatung Aufbauwissen","Von der Vision zur Wirklichkeit\nBundesweit) Gruppenraum",null,null,"Wertpapierberatung Aufbauwissen"]
["2025-03-21","Fr",12]
["2025-03-22","Sa"]
["2025-03-23","So"]
["2025-03-24","Mo",13]
["2025-03-25","Di",13,"Teammeeting VAA2HH & VAA3D",null,null,null,null,"Teammeeting VAA2HH & VAA3D","Teammeeting VAA2HH & VAA3D"]
["2025-03-26","Mi",13,"Teammeeting VAA2HH & VAA3D",null,null,null,null,"Teammeeting VAA2HH & VAA3D","Teammeeting VAA2HH & VAA3D"]
["2025-03-27","Do",13,"Teammeeting VAA2HH & VAA3D",null,null,null,null,"Teammeeting VAA2HH & VAA3D","Teammeeting VAA2HH & VAA3D"]
["2025-03-28","Fr",13]
["2025-03-29","Sa"]
["2025-03-30","So"]
["2025-03-31","Mo",14,"Wertpapierberatung Abschlussseminar 09.24",null,null,"Wertpapierberatung Abschlussseminar 10.24",null,null,null,"Wertpapierberatung Abschlussseminar 10.24","Wertpapierberatung Abschlussseminar 09.24",null,null,null,"Wertpapierberatung Abschlussseminar 09.24"]
["2025-04-01","Di",14,"Wertpapierberatung Abschlussseminar 09.24",null,null,"Wertpapierberatung Abschlussseminar 10.24","Kompetenter Führen\nVDW\n(Gruppenraum)","KV Ergänzungsversicherung\nVDW\nmind. 80 qm, Stuhlkreis, Tische am Rand, 2 FC, 3 MW + 1 GR","Kompetenter Führen\nVDW","Wertpapierberatung Abschlussseminar 10.24","Wertpapierberatung Abschlussseminar 09.24\n(Gruppenraum)","KV Ergänzungsversicherung\nVDW","Kompetenter Führen\nVDW",null,"Wertpapierberatung Abschlussseminar 09.24"]
["2025-04-02","Mi",14,"Wertpapierberatung Abschlussseminar 09.24",null,null,"Wertpapierberatung Abschlussseminar 10.24","Kompetenter Führen\nVDW\n(Gruppenraum)","KV Ergänzungsversicherung\nVDW\nmind. 80 qm, Stuhlkreis, Tische am Rand, 2 FC, 3 MW + 1 GR","Kompetenter Führen\nVDW","Wertpapierberatung Abschlussseminar 10.24","Wertpapierberatung Abschlussseminar 09.24\n(Gruppenraum)","KV Ergänzungsversicherung\nVDW","Kompetenter Führen\nVDW",null,"Wertpapierberatung Abschlussseminar 09.24"]
["2025-04-03","Do",14,"Wertpapierberatung Abschlussseminar 09.24",null,null,"Wertpapierberatung Abschlussseminar 10.24",null,"Erfolgreich aus der Box\nRD 809\n(Gruppenraum)","Erfolgreich aus der Box\nRD 809","Wertpapierberatung Abschlussseminar 10.24","Wertpapierberatung Abschlussseminar 09.24\n(Gruppenraum)",null,null,"Erfolgreich aus der Box\nRD 809","Wertpapierberatung Abschlussseminar 09.24"]
["2025-04-04","Fr",14,"Wertpapierberatung Abschlussseminar 09.24",null,null,"Wertpapierberatung Abschlussseminar 10.24",null,"Erfolgreich aus der Box\nRD 809\n(Gruppenraum)","Erfolgreich aus der Box\nRD 809","Wertpapierberatung Abschlussseminar 10.24","Wertpapierberatung Abschlussseminar 09.24\n(Gruppenraum)",null,null,"Erfolgreich aus der Box\nRD 809","Wertpapierberatung Abschlussseminar 09.24"]
["2025-04-05","Sa"]
["2025-04-06","So"]
["2025-04-07","Mo",15]
["2025-04-08","Di",15,"Wertpapierberatung Basisinfo 04.25",null,null,"Grundlagen der Krankenvollversicherung\nVDW\n3 MW, 2 FC + 2 GR","Digitaler Experte - Homepage\nVDW\n(Gruppenraum)","Digitaler Experte - Homepage\nVDW","Erfolgreich aus der Box\nVDW","Grundlagen der Krankenvollversicherung\nVDW\n(Gruppenraum)","Wertpapierberatung Basisinfo 04.25","Digitaler Experte - Homepage\nVDW","Erfolgreich aus der Box\nVDW","Grundlagen der Krankenvollversicherung\nVDW","Wertpapierberatung Basisinfo 04.25"]
["2025-04-09","Mi",15,"Wertpapierberatung Basisinfo 04.26",null,null,"Grundlagen der Krankenvollversicherung\nVDW\n3 MW, 2 FC + 2 GR","Digitaler Experte - Homepage\nVDW\n(Gruppenraum)","Digitaler Experte - Homepage\nVDW","Erfolgreich aus der Box\nVDW","Grundlagen der Krankenvollversicherung\nVDW\n(Gruppenraum)","Wertpapierberatung Basisinfo 04.25","Digitaler Experte - Homepage\nVDW","Erfolgreich aus der Box\nVDW","Grundlagen der Krankenvollversicherung\nVDW","Wertpapierberatung Basisinfo 04.25"]
["2025-04-10","Do",15,null,null,null,"Grundlagen der Krankenvollversicherung\nVDW\n3 MW, 2 FC + 2 GR",null,null,null,"Grundlagen der Krankenvollversicherung\nVDW\n(Gruppenraum)",null,null,null,"Grundlagen der Krankenvollversicherung\nVDW"]
["2025-04-11","Fr",15]
["2025-04-12","Sa"]
["2025-04-13","So"]
["2025-04-14","Mo",16]
["2025-04-15","Di",16,"Erfolgreich wachsen im Agenturbetrieb\nVDW",null,null,null,null,null,null,null,null,"Erfolgreich wachsen im Agenturbetrieb\nVDW"]
["2025-04-16","Mi",16,"Erfolgreich wachsen im Agenturbetrieb\nVDW",null,null,null,null,null,null,null,null,"Erfolgreich wachsen im Agenturbetrieb\nVDW"]
["2025-04-17","Do",16]
["2025-04-18","Fr",16,"Karfreitag","Karfreitag","Karfreitag","Karfreitag","Karfreitag","Karfreitag","Karfreitag","Karfreitag","Karfreitag","Karfreitag","Karfreitag","Karfreitag","Karfreitag","Karfreitag"]
["2025-04-19","Sa"]
["2025-04-20","So"]
["2025-04-21","Mo",17,"Ostermontag","Ostermontag","Ostermontag","Ostermontag","Ostermontag","Ostermontag","Ostermontag","Ostermontag","Ostermontag","Ostermontag","Ostermontag","Ostermontag","Ostermontag","Ostermontag"]
["2025-04-22","Di",17]
["2025-04-23","Mi",17]
["2025-04-24","Do",17]
["2025-04-25","Fr",17]
["2025-04-26","Sa"]
["2025-04-27","So"]
["2025-04-28","Mo",18]
["2025-04-29","Di",18]
["2025-04-30","Mi",18]
["2025-05-01","Do",18]
["2025-05-02","Fr",18]
["2025-05-03","Sa"]
["2025-05-04","So"]
["2025-05-05","Mo",19,"Wertpapierberatung Abschlussseminar 01.24 (IHK first)\nGruppe 1",null,null,"Wertpapierberatung Abschlussseminar 01.24 (IHK first)\nGruppe 2","Wertpapierberatung Abschlussseminar 01.24 (IHK first)\nGruppe 2"]
["2025-05-06","Di",19,"Wertpapierberatung Abschlussseminar 01.24 (IHK first)\nGruppe 1",null,null,"Wertpapierberatung Abschlussseminar 01.24 (IHK first)\nGruppe 2","Wertpapierberatung Abschlussseminar 01.24 (IHK first)\nGruppe 2","Firmenkunde Einrichtung und Liquidität\nVDW","Generationenberatung 2\nVDW","Vorsorgeaspekte für jede Lebensphase 1\nVDW","Erfolgreich im Vertrieb mit persolog 2\nBundesweit","Erfolgreich im Vertrieb mit persolog 2\nBundesweit","Vorsorgeaspekte für jede Lebensphase 1\nVDW","Generationenberatung 2\nVDW","Wertpapierberatung Abschlussseminar 01.24 (IHK first)\nGruppe 1"]
["2025-05-07","Mi",19,"Wertpapierberatung Abschlussseminar 01.24 (IHK first)\nGruppe 1",null,null,"Wertpapierberatung Abschlussseminar 01.24 (IHK first)\nGruppe 2","Wertpapierberatung Abschlussseminar 01.24 (IHK first)\nGruppe 2","Firmenkunde Einrichtung und Liquidität\nVDW","Generationenberatung 2\nVDW","Vorsorgeaspekte für jede Lebensphase 1\nVDW","Erfolgreich im Vertrieb mit persolog 2\nBundesweit","Erfolgreich im Vertrieb mit persolog 2\nBundesweit","Vorsorgeaspekte für jede Lebensphase 1\nVDW","Generationenberatung 2\nVDW","Wertpapierberatung Abschlussseminar 01.24 (IHK first)\nGruppe 1"]
["2025-05-08","Do",19,"Wertpapierberatung Abschlussseminar 01.24 (IHK first)\nGruppe 1",null,null,"Wertpapierberatung Abschlussseminar 01.24 (IHK first)\nGruppe 2","Wertpapierberatung Abschlussseminar 01.24 (IHK first)\nGruppe 2",null,null,null,null,null,null,null,"Wertpapierberatung Abschlussseminar 01.24 (IHK first)\nGruppe 1"]
["2025-05-09","Fr",19,"Wertpapierberatung Abschlussseminar 01.24 (IHK first)\nGruppe 1",null,null,"Wertpapierberatung Abschlussseminar 01.24 (IHK first)\nGruppe 2","Wertpapierberatung Abschlussseminar 01.24 (IHK first)\nGruppe 2",null,null,null,null,null,null,null,"Wertpapierberatung Abschlussseminar 01.24 (IHK first)\nGruppe 1"]
["2025-05-10","Sa"]
["2025-05-11","So"]
["2025-05-12","Mo",20]
["2025-05-13","Di",20,null,null,null,"Vorsorgeaspekte für jede Lebensphase 2\nVDW",null,null,null,null,null,"Vorsorgeaspekte für jede Lebensphase 2\nVDW"]
["2025-05-14","Mi",20,null,null,null,"Vorsorgeaspekte für jede Lebensphase 2\nVDW",null,null,null,null,null,"Vorsorgeaspekte für jede Lebensphase 2\nVDW"]
["2025-05-15","Do",20]
["2025-05-16","Fr",20]
["2025-05-17","Sa"]
["2025-05-18","So"]
["2025-05-19","Mo",21]
["2025-05-20","Di",21]
["2025-05-21","Mi",21,"Wertpapierberatung Aufbauwissen",null,null,null,null,null,null,null,null,"Wertpapierberatung Aufbauwissen"]
["2025-05-22","Do",21,"Wertpapierberatung Aufbauwissen",null,null,null,null,null,null,null,null,"Wertpapierberatung Aufbauwissen"]
["2025-05-23","Fr",21]
["2025-05-24","Sa"]
["2025-05-25","So"]
["2025-05-26","Mo",22]
["2025-05-27","Di",22]
["2025-05-28","Mi",22]
["2025-05-29","Do",22,"Christi Himmelfahrt","Christi Himmelfahrt","Christi Himmelfahrt","Christi Himmelfahrt","Christi Himmelfahrt","Christi Himmelfahrt","Christi Himmelfahrt","Christi Himmelfahrt","Christi Himmelfahrt","Christi Himmelfahrt","Christi Himmelfahrt","Christi Himmelfahrt","Christi Himmelfahrt","Christi Himmelfahrt"]
["2025-05-30","Fr",22]
["2025-05-31","Sa"]
["2025-06-01","So"]
["2025-06-02","Mo",23]
["2025-06-03","Di",23,"Expertenqualifikation Gesundheit\nVDW & VDS",null,null,"Erfolgreiche Geschäftsidee (Trainee-Programm)",null,"Risikomanagement im Unternehmen\nWest","Erfolgreiche Geschäftsidee (Trainee-Programm)\n(Gruppenraum)","Risikomanagement im Unternehmen\nWest\n(Gruppenraum)",null,"Expertenqualifikation Gesundheit","Erfolgreiche Geschäftsidee (Trainee-Programm)","Risikomanagement im Unternehmen\nWest"]
["2025-06-04","Mi",23,"Expertenqualifikation Gesundheit\nVDW & VDS",null,null,"Erfolgreiche Geschäftsidee (Trainee-Programm)",null,"Risikomanagement im Unternehmen\nWest","Erfolgreiche Geschäftsidee (Trainee-Programm)\n(Gruppenraum)","Risikomanagement im Unternehmen\nWest\n(Gruppenraum)",null,"Expertenqualifikation Gesundheit","Erfolgreiche Geschäftsidee (Trainee-Programm)","Risikomanagement im Unternehmen\nWest"]
["2025-06-05","Do",23,"Expertenqualifikation Gesundheit\nVDW & VDS",null,null,null,null,null,null,null,null,"Expertenqualifikation Gesundheit"]
["2025-06-06","Fr",23,"Expertenqualifikation Gesundheit\nVDW & VDS",null,null,null,null,null,null,null,null,"Expertenqualifikation Gesundheit"]
["2025-06-07","Sa"]
["2025-06-08","So"]
["2025-06-09","Mo",24,"Pfingsmontag","Pfingsmontag","Pfingsmontag","Pfingsmontag","Pfingsmontag","Pfingsmontag","Pfingsmontag","Pfingsmontag","Pfingsmontag","Pfingsmontag","Pfingsmontag","Pfingsmontag","Pfingsmontag","Pfingsmontag"]
["2025-06-10","Di",24]
["2025-06-11","Mi",24,"Erfolgreich im Vertrieb mit persolog 1\nVDN",null,null,"Wertpapierberatung Basisinfo 06.25",null,"Wertpapierberatung Basisinfo 06.25\n(Gruppenraum)",null,null,null,"Erfolgreich im Vertrieb mit persolog 1\nVDN","Wertpapierberatung Basisinfo 06.25"]
["2025-06-12","Do",24,"Erfolgreich im Vertrieb mit persolog 1\nVDN",null,null,"Wertpapierberatung Basisinfo 06.26",null,"Wertpapierberatung Basisinfo 06.25\n(Gruppenraum)",null,null,null,"Erfolgreich im Vertrieb mit persolog 1\nVDN","Wertpapierberatung Basisinfo 06.26"]
["2025-06-13","Fr",24]
["2025-06-14","Sa"]
["2025-06-15","So"]
["2025-06-16","Mo",25]
["2025-06-17","Di",25]
["2025-06-18","Mi",25]
["2025-06-19","Do",25,"Fronleichnam","Fronleichnam","Fronleichnam","Fronleichnam","Fronleichnam","Fronleichnam","Fronleichnam","Fronleichnam","Fronleichnam","Fronleichnam","Fronleichnam","Fronleichnam","Fronleichnam","Fronleichnam"]
["2025-06-20","Fr",25]
["2025-06-21","Sa"]
["2025-06-22","So"]
["2025-06-23","Mo",26]
["2025-06-24","Di",26,"Vorsorgeaspekte für jede Lebensphase 2\nVDW",null,null,"Gruppenversicherung Gesundheit\nVDW\nmind. 80 qm (Messestände), 5 MW, 2 FC + 1 GR",null,"Firmenkunde Haftung\nVDW","Firmenkunde Haftung\nVDW\n(Gruppenraum)","Gruppenversicherung Gesundheit\nVDW\n(Gruppenraum)",null,"Vorsorgeaspekte für jede Lebensphase 2\nVDW","Firmenkunde Haftung\nVDW","Gruppenversicherung Gesundheit\nVDW"]
["2025-06-25","Mi",26,"Vorsorgeaspekte für jede Lebensphase 2\nVDW",null,null,"Gruppenversicherung Gesundheit\nVDW\nmind. 80 qm (Messestände), 5 MW, 2 FC + 1 GR",null,"Firmenkunde Haftung\nVDW","Firmenkunde Haftung\nVDW\n(Gruppenraum)","Gruppenversicherung Gesundheit\nVDW\n(Gruppenraum)",null,"Vorsorgeaspekte für jede Lebensphase 2\nVDW","Firmenkunde Haftung\nVDW","Gruppenversicherung Gesundheit\nVDW"]
["2025-06-26","Do",26]
["2025-06-27","Fr",26]
["2025-06-28","Sa"]
["2025-06-29","So"]
["2025-06-30","Mo",27]
["2025-07-01","Di",27,"Generationenberatung 1\nVDW",null,null,null,null,null,null,null,null,"Generationenberatung 1\nVDW"]
["2025-07-02","Mi",27,"Generationenberatung 1\nVDW",null,null,null,null,null,null,null,null,"Generationenberatung 1\nVDW"]
["2025-07-03","Do",27]
["2025-07-04","Fr",27]
["2025-07-05","Sa"]
["2025-07-06","So"]
["2025-07-07","Mo",28]
["2025-07-08","Di",28]
["2025-07-09","Mi",28,"Wertpapierberatung Aufbauwissen",null,null,null,null,null,null,null,null,"Wertpapierberatung Aufbauwissen"]
["2025-07-10","Do",28,"Wertpapierberatung Aufbauwissen",null,null,null,null,null,null,null,null,"Wertpapierberatung Aufbauwissen"]
["2025-07-11","Fr",28,null,null,null,null,null,null,null,null,null,null,null,null,null,"Ende 100 Tageplan"]
["2025-07-12","Sa"]
["2025-07-13","So"]
["2025-07-14","Mo",29,"Wertpapierberatung Abschlussseminar 04.24 (IHK first)\nGruppe 1",null,null,"Wertpapierberatung Abschlussseminar 04.24 (IHK first)\nGruppe 2",null,null,"Wertpapierberatung Abschlussseminar 04.24 (IHK first)\n(Gruppenarbeitsraum)","Wertpapierberatung Abschlussseminar 04.24 (IHK first)\nGruppe 2\n(Gruppenarbeitsraum)",null,null,"Wertpapierberatung Abschlussseminar 04.24 (IHK first)","Wertpapierberatung Abschlussseminar 04.24 (IHK first)\nGruppe 2"]
["2025-07-15","Di",29,"Wertpapierberatung Abschlussseminar 04.24 (IHK first)\nGruppe 2",null,null,"Wertpapierberatung Abschlussseminar 04.24 (IHK first)\nGruppe 2",null,"Die Marke ICH\nVDW","Wertpapierberatung Abschlussseminar 04.24 (IHK first)\n(Gruppenarbeitsraum)","Wertpapierberatung Abschlussseminar 04.24 (IHK first)\nGruppe 2\n(Gruppenarbeitsraum)",null,"Die Marke ICH\nVDW","Wertpapierberatung Abschlussseminar 04.24 (IHK first)","Wertpapierberatung Abschlussseminar 04.24 (IHK first)\nGruppe 2"]
["2025-07-16","Mi",29,"Wertpapierberatung Abschlussseminar 04.24 (IHK first)\nGruppe 3",null,null,"Wertpapierberatung Abschlussseminar 04.24 (IHK first)\nGruppe 2",null,"Die Marke ICH\nVDW","Wertpapierberatung Abschlussseminar 04.24 (IHK first)\n(Gruppenarbeitsraum)","Wertpapierberatung Abschlussseminar 04.24 (IHK first)\nGruppe 2\n(Gruppenarbeitsraum)",null,"Die Marke ICH\nVDW","Wertpapierberatung Abschlussseminar 04.24 (IHK first)","Wertpapierberatung Abschlussseminar 04.24 (IHK first)\nGruppe 2"]
["2025-07-17","Do",29,"Wertpapierberatung Abschlussseminar 04.24 (IHK first)\nGruppe 4",null,null,"Wertpapierberatung Abschlussseminar 04.24 (IHK first)\nGruppe 2",null,null,"Wertpapierberatung Abschlussseminar 04.24 (IHK first)\n(Gruppenarbeitsraum)","Wertpapierberatung Abschlussseminar 04.24 (IHK first)\nGruppe 2\n(Gruppenarbeitsraum)",null,null,"Wertpapierberatung Abschlussseminar 04.24 (IHK first)","Wertpapierberatung Abschlussseminar 04.24 (IHK first)\nGruppe 2"]
["2025-07-18","Fr",29,"Wertpapierberatung Abschlussseminar 04.24 (IHK first)\nGruppe 5",null,null,"Wertpapierberatung Abschlussseminar 04.24 (IHK first)\nGruppe 2",null,null,"Wertpapierberatung Abschlussseminar 04.24 (IHK first)\n(Gruppenarbeitsraum)","Wertpapierberatung Abschlussseminar 04.24 (IHK first)\nGruppe 2\n(Gruppenarbeitsraum)",null,null,"Wertpapierberatung Abschlussseminar 04.24 (IHK first)","Wertpapierberatung Abschlussseminar 04.24 (IHK first)\nGruppe 2"]
["2025-07-19","Sa"]
["2025-07-20","So"]
["2025-07-21","Mo",30,"Wertpapierberatung Abschlussseminar 02.25",null,null,null,null,null,null,null,null,"Wertpapierberatung Abschlussseminar 02.25"]
["2025-07-22","Di",30,"Wertpapierberatung Abschlussseminar 02.26",null,null,null,null,null,null,null,null,"Wertpapierberatung Abschlussseminar 02.25"]
["2025-07-23","Mi",30,"Wertpapierberatung Abschlussseminar 02.27",null,null,null,null,null,null,null,null,"Wertpapierberatung Abschlussseminar 02.25"]
["2025-07-24","Do",30,"Wertpapierberatung Abschlussseminar 02.28",null,null,null,null,null,null,null,null,"Wertpapierberatung Abschlussseminar 02.25"]
["2025-07-25","Fr",30,"Wertpapierberatung Abschlussseminar 02.29",null,null,null,null,null,null,null,null,"Wertpapierberatung Abschlussseminar 02.25"]
["2025-07-26","Sa"]
["2025-07-27","So"]
["2025-07-28","Mo",31]
["2025-07-29","Di",31,"One Brand - One Mission\nBundesweit",null,null,null,null,null,null,null,null,"One Brand - One Mission\nBundesweit"]
["2025-07-30","Mi",31,"One Brand - One Mission\nBundesweit",null,null,null,null,null,null,null,null,"One Brand - One Mission\nBundesweit"]
["2025-07-31","Do",31,"One Brand - One Mission\nBundesweit",null,null,null,null,null,null,null,null,"One Brand - One Mission\nBundesweit"]
["2025-08-01","Fr",31]
["2025-08-02","Sa"]
["2025-08-03","So"]
["2025-08-04","Mo",32]
["2025-08-05","Di",32]
["2025-08-06","Mi",32]
["2025-08-07","Do",32]
["2025-08-08","Fr",32]
["2025-08-09","Sa"]
["2025-08-10","So"]
["2025-08-11","Mo",33]
["2025-08-12","Di",33,null,null,null,"Wertpapierberatung Basisinfo 08.25",null,null,null,null,"Wertpapierberatung Basisinfo 08.25",null,"Wertpapierberatung Basisinfo 08.25"]
["2025-08-13","Mi",33,"Firmenkunde Rechtsschutz 1\nVDW",null,null,"Wertpapierberatung Basisinfo 08.25",null,"Firmenkunde Rechtsschutz 1\nVDW",null,null,"Wertpapierberatung Basisinfo 08.25","Firmenkunde Rechtsschutz 1\nVDW","Wertpapierberatung Basisinfo 08.25"]
["2025-08-14","Do",33,"Firmenkunde Rechtsschutz 1\nVDW",null,null,null,null,"Firmenkunde Rechtsschutz 1\nVDW",null,null,null,"Firmenkunde Rechtsschutz 1\nVDW"]
["2025-08-15","Fr",33]
["2025-08-16","Sa"]
["2025-08-17","So"]
["2025-08-18","Mo",34]
["2025-08-19","Di",34,"Expertenqualifikation Gesundheit 1\nVDN & VDO",null,null,null,"EASY (Teil 1 bis 3): Kundenakte, Angebot/Antrag und Mein Bestand",null,null,null,null,"Expertenqualifikation Gesundheit 1\nVDN & VDO"]
["2025-08-20","Mi",34,"Expertenqualifikation Gesundheit 1\nVDN & VDO",null,null,null,"EASY (Teil 1 bis 3): Kundenakte, Angebot/Antrag und Mein Bestand",null,null,null,null,"Expertenqualifikation Gesundheit 1\nVDN & VDO"]
["2025-08-21","Do",34,"Expertenqualifikation Gesundheit 1\nVDN & VDO",null,null,null,"EASY (Teil 1 bis 3): Kundenakte, Angebot/Antrag und Mein Bestand",null,null,null,null,"Expertenqualifikation Gesundheit 1\nVDN & VDO"]
["2025-08-22","Fr",34,"Expertenqualifikation Gesundheit 1\nVDN & VDO",null,null,null,null,null,null,null,null,"Expertenqualifikation Gesundheit 1\nVDN & VDO"]
["2025-08-23","Sa"]
["2025-08-24","So"]
["2025-08-25","Mo",35]
["2025-08-26","Di",35,"Vorsorgeaspekte für jede Lebensphase 3\nVDW",null,null,null,null,null,null,null,null,"Vorsorgeaspekte für jede Lebensphase 3\nVDW","Risikomanagement im Unternehmen\nVDW"]
["2025-08-27","Mi",35,"Vorsorgeaspekte für jede Lebensphase 3\nVDW",null,null,"Risikomanagement im Unternehmen\nVDW",null,"Risikomanagement im Unternehmen\nVDW",null,null,null,"Vorsorgeaspekte für jede Lebensphase 3\nVDW","Risikomanagement im Unternehmen\nVDW"]
["2025-08-28","Do",35,null,null,null,"Risikomanagement im Unternehmen\nVDW",null,"Risikomanagement im Unternehmen\nVDW"]
["2025-08-29","Fr",35]
["2025-08-30","Sa"]
["2025-08-31","So"]
["2025-09-01","Mo",36]
["2025-09-02","Di",36]
["2025-09-03","Mi",36]
["2025-09-04","Do",36]
["2025-09-05","Fr",36]
["2025-09-06","Sa"]
["2025-09-07","So"]
["2025-09-08","Mo",37]
["2025-09-09","Di",37]
["2025-09-10","Mi",37]
["2025-09-11","Do",37]
["2025-09-12","Fr",37]
["2025-09-13","Sa"]
["2025-09-14","So"]
["2025-09-15","Mo",38,null,null,null,"Wertpapierberatung Abschlussseminar 04.25",null,null,"Wertpapierberatung Abschlussseminar 04.25",null,null,null,"Wertpapierberatung Abschlussseminar 04.25"]
["2025-09-16","Di",38,null,null,null,"Wertpapierberatung Abschlussseminar 04.25",null,"Generationenberatung 2\nVDW","Wertpapierberatung Abschlussseminar 04.25",null,null,"Generationenberatung 2\nVDW","Wertpapierberatung Abschlussseminar 04.25"]
["2025-09-17","Mi",38,"Wertpapierberatung Aufbauwissen",null,null,"Wertpapierberatung Abschlussseminar 04.25",null,"Generationenberatung 2\nVDW","Wertpapierberatung Abschlussseminar 04.25","Wertpapierberatung Aufbauwissen",null,"Generationenberatung 2\nVDW","Wertpapierberatung Abschlussseminar 04.25","Wertpapierberatung Aufbauwissen"]
["2025-09-18","Do",38,"Wertpapierberatung Aufbauwissen",null,null,"Wertpapierberatung Abschlussseminar 04.25",null,null,"Wertpapierberatung Abschlussseminar 04.25","Wertpapierberatung Aufbauwissen",null,null,"Wertpapierberatung Abschlussseminar 04.25","Wertpapierberatung Aufbauwissen"]
["2025-09-19","Fr",38,null,null,null,"Wertpapierberatung Abschlussseminar 04.25",null,null,"Wertpapierberatung Abschlussseminar 04.25",null,null,null,"Wertpapierberatung Abschlussseminar 04.25"]
["2025-09-20","Sa"]
["2025-09-21","So"]
["2025-09-22","Mo",39]
["2025-09-23","Di",39,"Erfolgreich wachsen im Agenturbetrieb\nVDN",null,null,null,null,"Grundlagen der Krankenvollversicherung\nVDW\n3 MW, 2 FC + 2 GR","Erfolgreich wachsen im Agenturbetrieb","Grundlagen der Krankenvollversicherung\nVDW",null,"Grundlagen der Krankenvollversicherung\nVDW","Erfolgreich wachsen im Agenturbetrieb"]
["2025-09-24","Mi",39,"Erfolgreich wachsen im Agenturbetrieb\nVDN",null,null,null,null,"Grundlagen der Krankenvollversicherung\nVDW\n3 MW, 2 FC + 2 GR","Erfolgreich wachsen im Agenturbetrieb","Grundlagen der Krankenvollversicherung\nVDW",null,"Grundlagen der Krankenvollversicherung\nVDW","Erfolgreich wachsen im Agenturbetrieb"]
["2025-09-25","Do",39,null,null,null,null,null,"Grundlagen der Krankenvollversicherung\nVDW\n3 MW, 2 FC + 2 GR",null,"Grundlagen der Krankenvollversicherung\nVDW",null,"Grundlagen der Krankenvollversicherung\nVDW"]
["2025-09-26","Fr",39]
["2025-09-27","Sa"]
["2025-09-28","So"]
["2025-09-29","Mo",40]
["2025-09-30","Di",40,"Erfolgreich im Vertrieb mit persolog 2\nBundesweit",null,null,null,null,null,null,null,null,"Erfolgreich im Vertrieb mit persolog 2\nBundesweit"]
["2025-10-01","Mi",40,"Erfolgreich im Vertrieb mit persolog 2\nBundesweit",null,null,null,null,null,null,null,null,"Erfolgreich im Vertrieb mit persolog 2\nBundesweit"]
["2025-10-02","Do",40]
["2025-10-03","Fr",40]
["2025-10-04","Sa"]
["2025-10-05","So"]
["2025-10-06","Mo",41]
["2025-10-07","Di",41,"Erfolgreich aus der Box\nVDW",null,null,null,null,null,null,null,null,"Erfolgreich aus der Box\nVDW"]
["2025-10-08","Mi",41,"Erfolgreich aus der Box\nVDW",null,null,null,null,null,null,null,null,"Erfolgreich aus der Box\nVDW"]
["2025-10-09","Do",41]
["2025-10-10","Fr",41]
["2025-10-11","Sa"]
["2025-10-12","So"]
["2025-10-13","Mo",42,"Wertpapierberatung Abschlussseminar 07.24 (IHK first)",null,null,null,null,null,null,null,null,"Wertpapierberatung Abschlussseminar 07.24 (IHK first)"]
["2025-10-14","Di",42,"Wertpapierberatung Abschlussseminar 07.24 (IHK first)",null,null,"Wertpapierberatung Basisinfo 10.25",null,"Wertpapierberatung Basisinfo 10.25",null,null,null,"Wertpapierberatung Abschlussseminar 07.24 (IHK first)","Wertpapierberatung Basisinfo 10.25"]
["2025-10-15","Mi",42,"Wertpapierberatung Abschlussseminar 07.24 (IHK first)",null,null,"Wertpapierberatung Basisinfo 10.26",null,"Wertpapierberatung Basisinfo 10.26",null,null,null,"Wertpapierberatung Abschlussseminar 07.24 (IHK first)","Wertpapierberatung Basisinfo 10.26"]
["2025-10-16","Do",42,"Wertpapierberatung Abschlussseminar 07.24 (IHK first)",null,null,"Wertpapierberatung Basisinfo 11.24 neu",null,"Wertpapierberatung Basisinfo 11.24 neu",null,null,null,"Wertpapierberatung Abschlussseminar 07.24 (IHK first)","Wertpapierberatung Basisinfo 11.24 neu"]
["2025-10-17","Fr",42,"Wertpapierberatung Abschlussseminar 07.24 (IHK first)",null,null,"Wertpapierberatung Basisinfo 11.24 neu",null,"Wertpapierberatung Basisinfo 11.24 neu",null,null,null,"Wertpapierberatung Abschlussseminar 07.24 (IHK first)","Wertpapierberatung Basisinfo 11.24 neu"]
["2025-10-18","Sa"]
["2025-10-19","So"]
["2025-10-20","Mo",43]
["2025-10-21","Di",43,"Von der Vision zur Wirklichkeit\nBundesweit",null,null,null,null,null,null,null,null,"Von der Vision zur Wirklichkeit\nBundesweit"]
["2025-10-22","Mi",43,"Von der Vision zur Wirklichkeit\nBundesweit",null,null,null,null,null,null,null,null,"Von der Vision zur Wirklichkeit\nBundesweit"]
["2025-10-23","Do",43,"Von der Vision zur Wirklichkeit\nBundesweit",null,null,null,null,null,null,null,null,"Von der Vision zur Wirklichkeit\nBundesweit"]
["2025-10-24","Fr",43]
["2025-10-25","Sa"]
["2025-10-26","So"]
["2025-10-27","Mo",44]
["2025-10-28","Di",44,"Vorsorgeaspekte für jede Lebensphase 3\nVDW",null,null,"KV Ergänzungsversicherung\nVDW\nmind. 80 qm, Stuhlkreis, Tische am Rand, 2 FC, 3 MW + 1 GR","Digitaler Experte - Homepage\nVDW","KV Ergänzungsversicherung\nVDW","Vorsorgeaspekte für jede Lebensphase 3\nVDW",null,null,"Digitaler Experte - Homepage\nVDW","KV Ergänzungsversicherung\nVDW","Vorsorgeaspekte für jede Lebensphase 3\nVDW"]
["2025-10-29","Mi",44,"Vorsorgeaspekte für jede Lebensphase 3\nVDW",null,null,"KV Ergänzungsversicherung\nVDW\nmind. 80 qm, Stuhlkreis, Tische am Rand, 2 FC, 3 MW + 1 GR","Digitaler Experte - Homepage\nVDW","KV Ergänzungsversicherung\nVDW","Vorsorgeaspekte für jede Lebensphase 3\nVDW",null,null,"Digitaler Experte - Homepage\nVDW","KV Ergänzungsversicherung\nVDW","Vorsorgeaspekte für jede Lebensphase 3\nVDW"]
["2025-10-30","Do",44]
["2025-10-31","Fr",44]
["2025-11-01","Sa"]
["2025-11-02","So"]
["2025-11-03","Mo",45]
["2025-11-04","Di",45,"Erfolgreich wachsen im Agenturbetrieb\nVDW",null,null,null,null,null,null,null,null,"Erfolgreich wachsen im Agenturbetrieb\nVDW"]
["2025-11-05","Mi",45,"Erfolgreich wachsen im Agenturbetrieb\nVDW",null,null,null,null,null,null,null,null,"Erfolgreich wachsen im Agenturbetrieb\nVDW"]
["2025-11-06","Do",45]
["2025-11-07","Fr",45]
["2025-11-08","Sa"]
["2025-11-09","So"]
["2025-11-10","Mo",46,"Wertpapierberatung Abschlussseminar 06.25",null,null,null,null,null,"Wertpapierberatung Abschlussseminar 06.25",null,null,null,"Wertpapierberatung Abschlussseminar 06.25"]
["2025-11-11","Di",46,"Wertpapierberatung Abschlussseminar 06.25",null,null,"Wertpapierberatung Basisinfo 01.25 neu",null,"Firmenkunde Rechtsschutz 2\nVDW","Wertpapierberatung Abschlussseminar 06.25","Wertpapierberatung Basisinfo 01.25 neu",null,"Firmenkunde Rechtsschutz 2\nVDW","Wertpapierberatung Abschlussseminar 06.25","Wertpapierberatung Basisinfo 01.25 neu"]
["2025-11-12","Mi",46,"Wertpapierberatung Abschlussseminar 06.25",null,null,"Wertpapierberatung Basisinfo 01.25 neu",null,"Firmenkunde Rechtsschutz 2\nVDW","Wertpapierberatung Abschlussseminar 06.25","Wertpapierberatung Basisinfo 01.25 neu",null,"Firmenkunde Rechtsschutz 2\nVDW","Wertpapierberatung Abschlussseminar 06.25","Wertpapierberatung Basisinfo 01.25 neu"]
["2025-11-13","Do",46,"Wertpapierberatung Abschlussseminar 06.25",null,null,"Wertpapierberatung Basisinfo 01.25 neu",null,null,"Wertpapierberatung Abschlussseminar 06.25","Wertpapierberatung Basisinfo 01.25 neu",null,null,"Wertpapierberatung Abschlussseminar 06.25","Wertpapierberatung Basisinfo 01.25 neu"]
["2025-11-14","Fr",46,"Wertpapierberatung Abschlussseminar 06.25",null,null,"Wertpapierberatung Basisinfo 01.25 neu",null,null,"Wertpapierberatung Abschlussseminar 06.25","Wertpapierberatung Basisinfo 01.25 neu",null,null,"Wertpapierberatung Abschlussseminar 06.25","Wertpapierberatung Basisinfo 01.25 neu"]
["2025-11-15","Sa"]
["2025-11-16","So"]
["2025-11-17","Mo",47]
["2025-11-18","Di",47]
["2025-11-19","Mi",47,"Wertpapierberatung Aufbauwissen",null,null,null,null,null,null,null,null,"Wertpapierberatung Aufbauwissen"]
["2025-11-20","Do",47,"Wertpapierberatung Aufbauwissen",null,null,null,null,null,null,null,null,"Wertpapierberatung Aufbauwissen"]
["2025-11-21","Fr",47]
["2025-11-22","Sa"]
["2025-11-23","So"]
["2025-11-24","Mo",48]
["2025-11-25","Di",48]
["2025-11-26","Mi",48]
["2025-11-27","Do",48]
["2025-11-28","Fr",48]
["2025-11-29","Sa"]
["2025-11-30","So"]
["2025-12-01","Mo",49]
["2025-12-02","Di",49]
["2025-12-03","Mi",49]
["2025-12-04","Do",49]
["2025-12-05","Fr",49]
["2025-12-06","Sa"]
["2025-12-07","So"]
["2025-12-08","Mo",50]
["2025-12-09","Di",50,"Wertpapierberatung Basisinfo 12.25",null,null,null,null,null,null,null,null,"Wertpapierberatung Basisinfo 12.25"]
["2025-12-10","Mi",50,"Wertpapierberatung Basisinfo 12.25",null,null,null,null,null,null,null,null,"Wertpapierberatung Basisinfo 12.25"]
["2025-12-11","Do",50]
["2025-12-12","Fr",50]
["2025-12-13","Sa"]
["2025-12-14","So"]
["2025-12-15","Mo",51]
["2025-12-16","Di",51]
["2025-12-17","Mi",51]
["2025-12-18","Do",51]
["2025-12-19","Fr",51]
["2025-12-20","Sa"]
["2025-12-21","So"]
["2025-12-22","Mo",null,null,null,null,null,null,null,null,null,"Abwesenheit"]
["2025-12-23","Di",52,null,null,null,null,null,null,null,null,"Abwesenheit"]
["2025-12-24","Mi",52,"Weihnachten",null,null,null,null,null,"Weihnachten",null,"Weihnachten"]
["2025-12-25","Do",52,"1. Weihnachtsfeiertag",null,null,null,null,null,"1. Weihnachtsfeiertag",null,"1. Weihnachtsfeiertag"]
["2025-12-26","Fr",52,"2. Weihnachtsfeiertag",null,null,null,null,null,"2. Weihnachtsfeiertag",null,"2. Weihnachtsfeiertag"]
["2025-12-27","Sa"]
["2025-12-28","So"]
["2025-12-29","Mo",1,null,null,null,null,null,null,null,null,"Abwesenheit"]
["2025-12-30","Di",1,null,null,null,null,null,null,null,null,"Abwesenheit"]
["2025-12-31","Mi",1,"Silvester",null,null,null,null,null,"Silvester",null,"Silvester"]
[{"$f":"NETWORKDAYS(A4,A368)","v":261},null,null,"# Bereits Belegte Tage ","# Belegte Tage ","# Belegte Tage ","# Belegte Tage ","# Belegte Tage ","# Belegte Tage ","# Belegte Tage ","# Belegte Tage ","# Belegte Tage "]
[13,"Anzahl Feiertage ",null,93,93,93,50,null,45,43,34,15]
[{"$f":"A369-A370","v":248},"Netto Werktage"]
["Leerstandstage",null,null,{"$f":"$A$371-D370","v":155},{"$f":"$A$371-E370","v":155},155,198,248,203,205,214,233]
["Durchschnitt",null,null,{"$f":"AVERAGE(D372:L372)","v":196.22222222222223}]
["Leerstandsquote %",null,null,{"$f":"D373/250","v":0.78488888888888897}]